Workbook

Sheet Cover
A1: =RIGHT(CELL("filename", $A$1), LEN(CELL("filename", $A$1)) - SEARCH("]", CELL("filename", $A$1))) -> Cover
C3: Model name: | D3: Draft PR19 Revenue adjustments feeder model
C4: Version number: | D4: 01h
C5: Filename: | D5: ="PR19 Revenue adjustments feeder model " & D4 & ".xlsm" -> PR19 Revenue adjustments feeder model 01h.xlsm
C6: Date: | D6: 2017-07-19
C7: Author: | D7: Ofwat and F1F9 UK Ltd
C8: Author contact information: | D8: financial.modelling@ofwat.gsi.gov.uk
C11: Summary of model: | D11: The model is designed to take the revenue adjustment outputs from the PR09 and PR14 reconciliations and convert them for use in the financial model in line with
D12: the proposals set out in the accounting for past delivery chapter of the PR19 methodology consultation document.
C14: Known limitations: | D14: The model has been subject to internal Ofwat quality assurance. Further quality assurance will be performed on the model.
C16: Feedback: | D16: We would welcome feedback on this draft of the PR19 Revenue adjustments feeder model. Please send any feedback to the following email address by 30 August 2017.
D17: water2020@ofwat.gsi.gov.uk
A20: End of sheet

Sheet Map & Key
A1: =RIGHT(CELL("filename", $A$1), LEN(CELL("filename", $A$1)) - SEARCH("]", CELL("filename", $A$1))) -> Map & Key
A3: GENERIC MODEL DESIGN
F5: ABOVE BONNET - USER INTERFACE
H8: Inputs | P8: Output Summary
F13: BELOW BONNET - CALCULATION ENGINE
H19: Input Transition | L19: Calculations | P19: Detailed Outputs
F25: Note: FAST strictly applicable below the bonnet
A28: MODEL MAP
F30: MODEL MAP
H32: INPUTS | L32: CALCULATIONS | V32: DOCUMENTATION
H36: =Inputs!$A$1 -> Inputs | L36: =Time!$A$1 -> Time | P36: =Summary_Output!$A$1 -> Summary_Output | V36: =$A$1 -> Map & Key
H37: All the hardcoded inputs used in the model for calculation. | L37: The model timeline and flag calculations are done in this sheet. | P37: A summary of links of major output of this model. | V37: Sheet references and model flow; Sheet tabs colours, colour coding, abbreviations, range names are mentioned in this sheet.
L39: =Indexation!$A$1 -> Indexation
L40: All the indexation related calculations are done in this sheet.
L42: =Calc!$A$1 -> Calc
L43: All the price regulations related calculations are done in this sheet.
L45: =Profiling!$A$1 -> Profiling
L46: All the profiling of revenue inputs related calculations are done in this sheet.
A51: SHEET TABS
H53: Light Yellow | J53: Input sheets
H55: No colour (default Excel tab colour) | J55: Calculation and documentation sheets
H57: Pale Blue | J57: Key output sheets
H59: Turquoise | J59: Quality control sheets
H61: Yellow | J61: To be completed, temporary, restructured, or deleted
A64: COLOUR
B66: Font colour only
H67: Blue font | J67: Imported from another sheet
H69: Red font | J69: Exported to another sheet (except from Input sheets)
H71: Black font | J71: Within sheet link or calculation
B73: Font + shade combinations
H74: Black font + Light Yellow shade | J74: Inputs
H76: Black font + Light Grey shade on entire row | J76: Within-worksheet counter-flow
H78: Blue font + Light Grey shade on entire row | J78: Between-worksheet counter-flow
H80: Empty Cell with Light Grey shade | J80: Empty cells being deliberately referenced
B82: Other
H83: Black font + Pale Blue shade on entire row | J83: Section separator
H85: Light Turquoise shade | J85: Stored/dead/hard coded outputs
H87: Tan shade | J87: Pre-model time line actuals
H89: Yellow shade | J89: Work in progress / temporary
H91: Lime shade | J91: Values or logic to be reviewed
B93: Error checks & alerts
H94: Green shade | J94: OK
H96: Red shade | J96: Error
H98: Gold shade | J98: Alert
A101: ABBREVIATIONS
H103: BR | I103: Bio resources
H104: CPIH | I104: Consumer price index housing
H105: RCV | I105: Regulatory capital value
H106: RPI | I106: Retail price index
H107: WR | I107: Water resources
H108: WN | I108: Water network
H109: WWN | I109: Wastewater network
A112: NAMES
H114: NO NAME RANGES PRESENT IN THE MODEL
A117: LIST OF FUNCTIONS USED
H119: SUMPRODUCT | J119: Multiplies corresponding components in the given arrays, and returns the sum of those products.
H120: MATCH | J120: The MATCH function searches for a specified item in a range of cells, and then returns the relative position of that item in the range.
H121: INDEX | J121: Returns a value or the reference to a value from within a table or range, selected by the row and column number indexes
A124: End of sheet

Sheet Inputs
A1: =RIGHT(CELL("FILENAME", $A$1), LEN(CELL("FILENAME", $A$1)) - SEARCH("]", CELL("FILENAME", $A$1))) -> Inputs
E2: =Time!E$25 -> Model period ending | J2: =Time!J$25 -> 2013-03-31 | K2: =Time!K$25 -> 2014-03-31 | L2: =Time!L$25 -> 2015-03-31 | M2: =Time!M$25 -> 2016-03-31 | N2: =Time!N$25 -> 2017-03-31 | O2: =Time!O$25 -> 2018-03-31 | P2: =Time!P$25 -> 2019-03-31 | Q2: =Time!Q$25 -> 2020-03-31 | R2: =Time!R$25 -> 2021-03-31 | S2: =Time!S$25 -> 2022-03-31 | T2: =Time!T$25 -> 2023-03-31 | U2: =Time!U$25 -> 2024-03-31 | V2: =Time!V$25 -> 2025-03-31
E3: =Time!E$80 -> Timeline label | J3: =Time!J$80 -> Pre-Fcst | K3: =Time!K$80 -> Pre-Fcst | L3: =Time!L$80 -> Pre-Fcst | M3: =Time!M$80 -> Pre-Fcst | N3: =Time!N$80 -> Pre-Fcst | O3: =Time!O$80 -> Pre-Fcst | P3: =Time!P$80 -> Pre-Fcst | Q3: =Time!Q$80 -> Pre-Fcst | R3: =Time!R$80 -> Forecast | S3: =Time!S$80 -> Forecast | T3: =Time!T$80 -> Forecast | U3: =Time!U$80 -> Forecast | V3: =Time!V$80 -> Forecast
E4: =Time!E$103 -> Financial year ending | J4: =Time!J$103 -> 2013 | K4: =Time!K$103 -> 2014 | L4: =Time!L$103 -> 2015 | M4: =Time!M$103 -> 2016 | N4: =Time!N$103 -> 2017 | O4: =Time!O$103 -> 2018 | P4: =Time!P$103 -> 2019 | Q4: =Time!Q$103 -> 2020 | R4: =Time!R$103 -> 2021 | S4: =Time!S$103 -> 2022 | T4: =Time!T$103 -> 2023 | U4: =Time!U$103 -> 2024 | V4: =Time!V$103 -> 2025
A5: =IF(COUNTIF(A6:A139,"< 0") + COUNTIF(A6:A139,">0") <> 0, 1, 0) -> 0 | D5: Input references | E5: =Time!E$10 -> Model column counter | F5: Constant | G5: Unit | H5: Total | J5: =Time!J$10 -> 1 | K5: =Time!K$10 -> 2 | L5: =Time!L$10 -> 3 | M5: =Time!M$10 -> 4 | N5: =Time!N$10 -> 5 | O5: =Time!O$10 -> 6 | P5: =Time!P$10 -> 7 | Q5: =Time!Q$10 -> 8 | R5: =Time!R$10 -> 9 | S5: =Time!S$10 -> 10 | T5: =Time!T$10 -> 11 | U5: =Time!U$10 -> 12 | V5: =Time!V$10 -> 13
E6: [Used in formula range - Do not delete]
A8: A: TIME
B10: Timeline setup
C12: Timeline start dates
E13: 1st model column start date | F13: 2012-04-01 | G13: date | H13: Date should be the first date of the financial year
C15: Financial year inputs
E16: First modelling column financial year# | F16: 2013 | G16: year # | H16: Financial model start year
E17: Financial year end month number | F17: 3 | G17: month # | H17: Month of financial year end for financial model
C19: Timeline labels
E20: Pre - forecast period | F20: Pre-Fcst | G20: label
E21: Forecast period | F21: Forecast | G21: label
E22: Post - forecast period | F22: Post-Fcst | G22: label
B24: Project dates
E26: Forecast start date | F26: 2020-04-01 | G26: date
E27: Forecast duration | F27: 5 | G27: years
E28: Forecast duration (text) | F28: =YEAR(F26) & "-" & TEXT(DATE(YEAR(F26) + F27, 1, 1), "yy") -> 2020-25 | G28: years # | H28: For info. only
A31: B: INDEXATION
B33: CPIH INDEXATION
E35: Consumer Price Index for April | G35: index | J35: 95.9 | K35: 98 | L35: 99.6 | M35: 99.9 | N35: 100.6 | O35: 103.2
E36: Consumer Price Index for May | G36: index | J36: 95.9 | K36: 98.2 | L36: 99.6 | M36: 100.1 | N36: 100.8 | O36: 103.5
E37: Consumer Price Index for June | G37: index | J37: 95.6 | K37: 98 | L37: 99.8 | M37: 100.1 | N37: 101
E38: Consumer Price Index for July | G38: index | J38: 95.7 | K38: 98 | L38: 99.6 | M38: 100 | N38: 100.9
E39: Consumer Price Index for August | G39: index | J39: 96.1 | K39: 98.4 | L39: 99.9 | M39: 100.3 | N39: 101.2
E40: Consumer Price Index for September | G40: index | J40: 96.4 | K40: 98.7 | L40: 100 | M40: 100.2 | N40: 101.5
E41: Consumer Price Index for October | G41: index | J41: 96.8 | K41: 98.8 | L41: 100.1 | M41: 100.3 | N41: 101.6
E42: Consumer Price Index for November | G42: index | J42: 97 | K42: 98.8 | L42: 99.9 | M42: 100.3 | N42: 101.8
E43: Consumer Price Index for December | G43: index | J43: 97.3 | K43: 99.2 | L43: 99.9 | M43: 100.4 | N43: 102.2
E44: Consumer Price Index for January | G44: index | J44: 97 | K44: 98.7 | L44: 99.2 | M44: 99.9 | N44: 101.8
E45: Consumer Price Index for February | G45: index | J45: 97.5 | K45: 99.1 | L45: 99.5 | M45: 100.1 | N45: 102.4
E46: Consumer Price Index for March | G46: index | J46: 97.8 | K46: 99.3 | L46: 99.6 | M46: 100.4 | N46: 102.7
E48: CPIH: Assumed percentage increase for unpopulated monthly values | G48: %
B50: RPI INDEXATION
E52: Retail Price Index for April | G52: index | J52: 242.5 | K52: 249.5 | L52: 255.7 | M52: 258 | N52: 261.4 | O52: 270.6
E53: Retail Price Index for May | G53: index | J53: 242.4 | K53: 250 | L53: 255.9 | M53: 258.5 | N53: 262.1 | O53: 271.7
E54: Retail Price Index for June | G54: index | J54: 241.8 | K54: 249.7 | L54: 256.3 | M54: 258.9 | N54: 263.1
E55: Retail Price Index for July | G55: index | J55: 242.1 | K55: 249.7 | L55: 256 | M55: 258.6 | N55: 263.4
E56: Retail Price Index for August | G56: index | J56: 243 | K56: 251 | L56: 257 | M56: 259.8 | N56: 264.4
E57: Retail Price Index for September | G57: index | J57: 244.2 | K57: 251.9 | L57: 257.6 | M57: 259.6 | N57: 264.9
E58: Retail Price Index for October | G58: index | J58: 245.6 | K58: 251.9 | L58: 257.7 | M58: 259.5 | N58: 264.8
E59: Retail Price Index for November | G59: index | J59: 245.6 | K59: 252.1 | L59: 257.1 | M59: 259.8 | N59: 265.5
E60: Retail Price Index for December | G60: index | J60: 246.8 | K60: 253.4 | L60: 257.5 | M60: 260.6 | N60: 267.1
E61: Retail Price Index for January | G61: index | J61: 245.8 | K61: 252.6 | L61: 255.4 | M61: 258.8 | N61: 265.5
E62: Retail Price Index for February | G62: index | J62: 247.6 | K62: 254.2 | L62: 256.7 | M62: 260 | N62: 268.4
E63: Retail Price Index for March | G63: index | J63: 248.7 | K63: 254.8 | L63: 257.1 | M63: 261.1 | N63: 269.3
E65: RPI: Assumed percentage increase for unpopulated monthly values | G65: %
B67: Inflation
E69: Year reference for FYA base price 1 | F69: 2013 | G69: year #
E70: Year reference for FYA base price 2 | F70: 2018 | G70: year #
E71: Year reference for FYE base price 1 | F71: 2020 | G71: year #
E72: Year reference for FYE base price 2 | F72: 2019 | G72: year #
E73: Year reference for FYE end price | F73: 2020 | G73: year #
B75: Deflation
E77: Year reference for FYE base price | F77: 2020 | G77: year #
E78: Year reference for FYA end price | F78: 2018 | G78: year #
A81: C: REVENUE INPUTS
B83: Water services
E85: Water trading - water services | G85: £m | H85: 2017/18 FYA
D87: Water network +
E88: Final 2010-15 reconciliation - PR09 Legacy blind year adjustments - Water network | G88: £m | H88: 2012/13 FYA
E89: ODI - Water network | G89: £m | H89: 2012/13 FYA
E90: Totex - Water network | G90: £m | H90: 2012/13 FYA
E91: Water trading - Water network | G91: £m | H91: 2017/18 FYA
E92: WRFIM - Water network | G92: £m | H92: November 2018/2019
B94: Wastewater network +
E96: Final 2010-15 reconciliation - PR09 Legacy blind year adjustments - Wastewater network | G96: £m | H96: 2012/13 FYA
E97: ODI - Wastewater network | G97: £m | H97: 2012/13 FYA
E98: Totex - Wastewater network | G98: £m | H98: 2012/13 FYA
E99: WRFIM - Wastewater network | G99: £m | H99: November 2018/2019
B102: Residential retail
E104: Residential retail revenue | G104: £m | H104: 2019/20 FYE
E105: Residential retail - SIM | G105: £m | H105: 2017/18 FYA
A109: D: PROFILING INPUTS
B111: Discounting
E113: PV base date | F113: 2021-03-31 | G113: date
E115: Discount rate - Water resources | G115: %
E116: Discount rate - Water network | G116: %
E117: Discount rate - Wastewater network | G117: %
E118: Discount rate - Residential retail | G118: %
E120: Number of years to profile over | G120: #
B122: Profile selector
E124: Water resources revenue adjustment selector | F124: 2 | G124: 0 = Apply in first year, 1 = Constant annuity 2020-25, 2 = Even allocation - NPV neutral
E125: Water network revenue adjustment selector | F125: 2 | G125: 0 = Apply in first year, 1 = Constant annuity 2020-25, 2 = Even allocation - NPV neutral
E126: Wastewater network revenue adjustment selector | F126: 2 | G126: 0 = Apply in first year, 1 = Constant annuity 2020-25, 2 = Even allocation - NPV neutral
E127: Residential retail revenue adjustment selector | F127: 2 | G127: 0 = Apply in first year, 1 = Constant annuity 2020-25, 2 = Even allocation - NPV neutral
A130: E: NON CHANGEABLE MODEL TECHNICAL INPUTS
E132: Months per model period | F132: 12 | G132: months
E134: Months in a year | F134: 12 | G134: months
E136: Days in a year | F136: 365 | G136: days
E139: [Used in formula range - Do not delete]

Sheet Time
A1: =RIGHT(CELL("FILENAME", $A$1), LEN(CELL("FILENAME", $A$1)) - SEARCH("]", CELL("FILENAME", $A$1))) -> Time
E2: =Time!E$25 -> Model period ending | J2: =Time!J$25 -> 2013-03-31 | K2: =Time!K$25 -> 2014-03-31 | L2: =Time!L$25 -> 2015-03-31 | M2: =Time!M$25 -> 2016-03-31 | N2: =Time!N$25 -> 2017-03-31 | O2: =Time!O$25 -> 2018-03-31 | P2: =Time!P$25 -> 2019-03-31 | Q2: =Time!Q$25 -> 2020-03-31 | R2: =Time!R$25 -> 2021-03-31 | S2: =Time!S$25 -> 2022-03-31 | T2: =Time!T$25 -> 2023-03-31 | U2: =Time!U$25 -> 2024-03-31 | V2: =Time!V$25 -> 2025-03-31
E3: =Time!E$80 -> Timeline label | J3: =Time!J$80 -> Pre-Fcst | K3: =Time!K$80 -> Pre-Fcst | L3: =Time!L$80 -> Pre-Fcst | M3: =Time!M$80 -> Pre-Fcst | N3: =Time!N$80 -> Pre-Fcst | O3: =Time!O$80 -> Pre-Fcst | P3: =Time!P$80 -> Pre-Fcst | Q3: =Time!Q$80 -> Pre-Fcst | R3: =Time!R$80 -> Forecast | S3: =Time!S$80 -> Forecast | T3: =Time!T$80 -> Forecast | U3: =Time!U$80 -> Forecast | V3: =Time!V$80 -> Forecast
E4: =Time!E$103 -> Financial year ending | J4: =Time!J$103 -> 2013 | K4: =Time!K$103 -> 2014 | L4: =Time!L$103 -> 2015 | M4: =Time!M$103 -> 2016 | N4: =Time!N$103 -> 2017 | O4: =Time!O$103 -> 2018 | P4: =Time!P$103 -> 2019 | Q4: =Time!Q$103 -> 2020 | R4: =Time!R$103 -> 2021 | S4: =Time!S$103 -> 2022 | T4: =Time!T$103 -> 2023 | U4: =Time!U$103 -> 2024 | V4: =Time!V$103 -> 2025
E5: =Time!E$10 -> Model column counter | F5: Constant | G5: Unit | H5: Total | J5: =Time!J$10 -> 1 | K5: =Time!K$10 -> 2 | L5: =Time!L$10 -> 3 | M5: =Time!M$10 -> 4 | N5: =Time!N$10 -> 5 | O5: =Time!O$10 -> 6 | P5: =Time!P$10 -> 7 | Q5: =Time!Q$10 -> 8 | R5: =Time!R$10 -> 9 | S5: =Time!S$10 -> 10 | T5: =Time!T$10 -> 11 | U5: =Time!U$10 -> 12 | V5: =Time!V$10 -> 13
A7: MODEL PERIOD
B9: Model column counter
E10: Model column counter | G10: counter | J10: =I10 + 1 -> 1 | K10: 2 | L10: 3 | M10: 4 | N10: 5 | O10: 6 | P10: 7 | Q10: =P10 + 1 -> 8 | R10: =Q10 + 1 -> 9 | S10: =R10 + 1 -> 10 | T10: =S10 + 1 -> 11 | U10: =T10 + 1 -> 12 | V10: =U10 + 1 -> 13
E11: Model column total | F11: =MAX(J10:V10) -> 13 | G11: columns
E13: =E$10 -> Model column counter | F13: 0 | G13: counter | H13: 0 | I13: 0 | J13: 1 | K13: 2 | L13: 3 | M13: 4 | N13: 5 | O13: 6 | P13: 7 | Q13: 8 | R13: 9 | S13: 10 | T13: 11 | U13: 12 | V13: 13
E14: 1st model column flag | G14: flag | H14: =SUM(J14:V14) -> 1 | J14: =IF(J13 = 1, 1, 0) -> 1 | K14: 0 | L14: 0 | M14: 0 | N14: 0 | O14: 0 | P14: 0 | Q14: =IF(Q13 = 1, 1, 0) -> 0 | R14: 0 | S14: 0 | T14: 0 | U14: 0 | V14: 0
B16: Model period beginning
E17: =Inputs!E$13 -> 1st model column start date | F17: =Inputs!F$13 -> 2012-04-01 | G17: =Inputs!G$13 -> date
E18: =Inputs!E$132 -> Months per model period | F18: =Inputs!F$132 -> 12 | G18: =Inputs!G$132 -> months
E19: =E$14 -> 1st model column flag | F19: 0 | G19: flag | H19: 1 | I19: 0 | J19: 1 | K19: 0 | L19: 0 | M19: 0 | N19: 0 | O19: 0 | P19: 0 | Q19: 0 | R19: 0 | S19: 0 | T19: 0 | U19: 0 | V19: 0
E20: Model period beginning | G20: date | J20: =IF(J19 = 1, $F17, DATE(YEAR(I20), MONTH(I20) + $F18, DAY(1))) -> 2012-04-01 | K20: 2013-04-01 | L20: 2014-04-01 | M20: 2015-04-01 | N20: 2016-04-01 | O20: 2017-04-01 | P20: 2018-04-01 | Q20: =IF(Q19 = 1, $F17, DATE(YEAR(P20), MONTH(P20) + $F18, DAY(1))) -> 2019-04-01 | R20: =IF(R19 = 1, $F17, DATE(YEAR(Q20), MONTH(Q20) + $F18, DAY(1))) -> 2020-04-01 | S20: =IF(S19 = 1, $F17, DATE(YEAR(R20), MONTH(R20) + $F18, DAY(1))) -> 2021-04-01 | T20: =IF(T19 = 1, $F17, DATE(YEAR(S20), MONTH(S20) + $F18, DAY(1))) -> 2022-04-01 | U20: =IF(U19 = 1, $F17, DATE(YEAR(T20), MONTH(T20) + $F18, DAY(1))) -> 2023-04-01 | V20: =IF(V19 = 1, $F17, DATE(YEAR(U20), MONTH(U20) + $F18, DAY(1))) -> 2024-04-01
B22: Model period ending
E23: =Inputs!E$132 -> Months per model period | F23: =Inputs!F$132 -> 12 | G23: =Inputs!G$132 -> months
E24: =E$20 -> Model period beginning | F24: 00:00:00 | G24: date | H24: 00:00:00 | I24: 00:00:00 | J24: 2012-04-01 | K24: 2013-04-01 | L24: 2014-04-01 | M24: 2015-04-01 | N24: 2016-04-01 | O24: 2017-04-01 | P24: 2018-04-01 | Q24: 2019-04-01 | R24: 2020-04-01 | S24: 2021-04-01 | T24: 2022-04-01 | U24: 2023-04-01 | V24: 2024-04-01
E25: Model period ending | G25: date | J25: =DATE(YEAR(J24), MONTH(J24) + $F23, DAY(J24) - 1) -> 2013-03-31 | K25: 2014-03-31 | L25: 2015-03-31 | M25: 2016-03-31 | N25: 2017-03-31 | O25: 2018-03-31 | P25: 2019-03-31 | Q25: =DATE(YEAR(Q24), MONTH(Q24) + $F23, DAY(Q24) - 1) -> 2020-03-31 | R25: 2021-03-31 | S25: 2022-03-31 | T25: 2023-03-31 | U25: 2024-03-31 | V25: 2025-03-31
A28: FORECAST PERIOD
B30: Forecast start period flag
E31: =Inputs!E$26 -> Forecast start date | F31: =Inputs!F$26 -> 2020-04-01 | G31: =Inputs!G$26 -> date
E32: =E$20 -> Model period beginning | F32: 00:00:00 | G32: date | H32: 00:00:00 | I32: 00:00:00 | J32: 2012-04-01 | K32: 2013-04-01 | L32: 2014-04-01 | M32: 2015-04-01 | N32: 2016-04-01 | O32: 2017-04-01 | P32: 2018-04-01 | Q32: 2019-04-01 | R32: 2020-04-01 | S32: 2021-04-01 | T32: 2022-04-01 | U32: 2023-04-01 | V32: 2024-04-01
E33: =E$25 -> Model period ending | F33: 00:00:00 | G33: date | H33: 00:00:00 | I33: 00:00:00 | J33: 2013-03-31 | K33: 2014-03-31 | L33: 2015-03-31 | M33: 2016-03-31 | N33: 2017-03-31 | O33: 2018-03-31 | P33: 2019-03-31 | Q33: 2020-03-31 | R33: 2021-03-31 | S33: 2022-03-31 | T33: 2023-03-31 | U33: 2024-03-31 | V33: 2025-03-31
E34: Forecast start period flag | G34: flag | H34: =SUM(J34:V34) -> 1 | J34: =IF(AND($F31 >= J32, $F31 <= J33), 1, 0) -> 0 | K34: =IF(AND($F31 >= K32, $F31 <= K33), 1, 0) -> 0 | L34: 0 | M34: 0 | N34: 0 | O34: 0 | P34: 0 | Q34: =IF(AND($F31 >= Q32, $F31 <= Q33), 1, 0) -> 0 | R34: 1 | S34: 0 | T34: 0 | U34: 0 | V34: 0
B36: Forecast end period flag
E37: =Inputs!E$26 -> Forecast start date | F37: =Inputs!F$26 -> 2020-04-01 | G37: =Inputs!G$26 -> date
E38: =Inputs!E$27 -> Forecast duration | F38: =Inputs!F$27 -> 5 | G38: =Inputs!G$27 -> years
E39: Forecast end date | F39: =DATE(YEAR(F37) + F38, MONTH(F37), DAY(F37) - 1) -> 2025-03-31 | G39: date
E41: =E$39 -> Forecast end date | F41: =F$39 -> 2025-03-31 | G41: =G$39 -> date
E42: =E$20 -> Model period beginning | F42: 00:00:00 | G42: date | H42: 00:00:00 | I42: 00:00:00 | J42: 2012-04-01 | K42: 2013-04-01 | L42: 2014-04-01 | M42: 2015-04-01 | N42: 2016-04-01 | O42: 2017-04-01 | P42: 2018-04-01 | Q42: 2019-04-01 | R42: 2020-04-01 | S42: 2021-04-01 | T42: 2022-04-01 | U42: 2023-04-01 | V42: 2024-04-01
E43: =E$25 -> Model period ending | F43: 00:00:00 | G43: date | H43: 00:00:00 | I43: 00:00:00 | J43: 2013-03-31 | K43: 2014-03-31 | L43: 2015-03-31 | M43: 2016-03-31 | N43: 2017-03-31 | O43: 2018-03-31 | P43: 2019-03-31 | Q43: 2020-03-31 | R43: 2021-03-31 | S43: 2022-03-31 | T43: 2023-03-31 | U43: 2024-03-31 | V43: 2025-03-31
E44: Forecast end period flag | G44: flag | H44: =SUM(J44:V44) -> 1 | J44: =IF(AND($F41 >= J42, $F41 <= J43), 1, 0) -> 0 | K44: 0 | L44: 0 | M44: 0 | N44: 0 | O44: 0 | P44: 0 | Q44: =IF(AND($F41 >= Q42, $F41 <= Q43), 1, 0) -> 0 | R44: 0 | S44: 0 | T44: 0 | U44: 0 | V44: 1
B46: Forecast period flag
E47: =E$34 -> Forecast start period flag | F47: =F$34 -> 0 | G47: flag | H47: 1 | I47: 0 | J47: 0 | K47: 0 | L47: 0 | M47: 0 | N47: 0 | O47: 0 | P47: 0 | Q47: 0 | R47: 1 | S47: 0 | T47: 0 | U47: 0 | V47: 0
E48: =E$44 -> Forecast end period flag | F48: =F$44 -> 0 | G48: flag | H48: 1 | I48: 0 | J48: 0 | K48: 0 | L48: 0 | M48: 0 | N48: 0 | O48: 0 | P48: 0 | Q48: 0 | R48: 0 | S48: 0 | T48: 0 | U48: 0 | V48: 1
E49: Forecast period flag | G49: flag | H49: =SUM(J49:V49) -> 5 | J49: =J47 + I49 - I48 -> 0 | K49: =K47 + J49 - J48 -> 0 | L49: 0 | M49: 0 | N49: 0 | O49: 0 | P49: 0 | Q49: =Q47 + P49 - P48 -> 0 | R49: =R47 + Q49 - Q48 -> 1 | S49: =S47 + R49 - R48 -> 1 | T49: =T47 + S49 - S48 -> 1 | U49: =U47 + T49 - T48 -> 1 | V49: =V47 + U49 - U48 -> 1
E50: Total number of forecast periods | F50: =SUM(J49:V49) -> 5 | G50: periods
B52: Pre-forecast period flag
E53: =E$14 -> 1st model column flag | F53: =F$14 -> 0 | G53: flag | H53: 1 | I53: 0 | J53: 1 | K53: 0 | L53: 0 | M53: 0 | N53: 0 | O53: 0 | P53: 0 | Q53: 0 | R53: 0 | S53: 0 | T53: 0 | U53: 0 | V53: 0
E54: =E$34 -> Forecast start period flag | F54: =F$34 -> 0 | G54: flag | H54: 1 | I54: 0 | J54: 0 | K54: 0 | L54: 0 | M54: 0 | N54: 0 | O54: 0 | P54: 0 | Q54: 0 | R54: 1 | S54: 0 | T54: 0 | U54: 0 | V54: 0
E55: Pre-forecast period flag | G55: flag | H55: =SUM(J55:V55) -> 8 | J55: =J53 + I55 - J54 -> 1 | K55: =K53 + J55 - K54 -> 1 | L55: 1 | M55: 1 | N55: 1 | O55: 1 | P55: 1 | Q55: =Q53 + P55 - Q54 -> 1 | R55: =R53 + Q55 - R54 -> 0 | S55: =S53 + R55 - S54 -> 0 | T55: =T53 + S55 - T54 -> 0 | U55: =U53 + T55 - U54 -> 0 | V55: =V53 + U55 - V54 -> 0
E56: Pre-forecast period flag - total | F56: =SUM(J55:V55) -> 8 | G56: periods
B58: First post-forecast period flag
E59: =E$44 -> Forecast end period flag | F59: =F$44 -> 0 | G59: flag | H59: 1 | I59: 0 | J59: 0 | K59: 0 | L59: 0 | M59: 0 | N59: 0 | O59: 0 | P59: 0 | Q59: 0 | R59: 0 | S59: 0 | T59: 0 | U59: 0 | V59: 1
E60: First post-forecast period flag | G60: flag | H60: =SUM(J60:V60) -> 0 | J60: =I59 -> 0 | K60: =J59 -> 0 | L60: 0 | M60: 0 | N60: 0 | O60: 0 | P60: 0 | Q60: =P59 -> 0 | R60: =Q59 -> 0 | S60: =R59 -> 0 | T60: =S59 -> 0 | U60: =T59 -> 0 | V60: =U59 -> 0
B62: Post-forecast period flag
E63: =E$60 -> First post-forecast period flag | F63: 0 | G63: flag | H63: 0 | I63: 0 | J63: 0 | K63: 0 | L63: 0 | M63: 0 | N63: 0 | O63: 0 | P63: 0 | Q63: 0 | R63: 0 | S63: 0 | T63: 0 | U63: 0 | V63: 0
E64: Post-forecast period flag | G64: flag | H64: =SUM(J64:V64) -> 0 | J64: =J63 + I64 -> 0 | K64: =K63 + J64 -> 0 | L64: 0 | M64: 0 | N64: 0 | O64: 0 | P64: 0 | Q64: =Q63 + P64 -> 0 | R64: =R63 + Q64 -> 0 | S64: =S63 + R64 -> 0 | T64: =T63 + S64 -> 0 | U64: =U63 + T64 -> 0 | V64: =V63 + U64 -> 0
E65: Post-forecast period - total | F65: =SUM(J64:V64) -> 0 | G65: periods
A68: MODEL TIMELINE
B70: Timeline label
E71: =E$14 -> 1st model column flag | F71: 0 | G71: flag | H71: 1 | I71: 0 | J71: 1 | K71: 0 | L71: 0 | M71: 0 | N71: 0 | O71: 0 | P71: 0 | Q71: 0 | R71: 0 | S71: 0 | T71: 0 | U71: 0 | V71: 0
E72: =E$34 -> Forecast start period flag | F72: =F$34 -> 0 | G72: flag | H72: 1 | I72: 0 | J72: 0 | K72: 0 | L72: 0 | M72: 0 | N72: 0 | O72: 0 | P72: 0 | Q72: 0 | R72: 1 | S72: 0 | T72: 0 | U72: 0 | V72: 0
E73: =E$60 -> First post-forecast period flag | F73: 0 | G73: flag | H73: 0 | I73: 0 | J73: 0 | K73: 0 | L73: 0 | M73: 0 | N73: 0 | O73: 0 | P73: 0 | Q73: 0 | R73: 0 | S73: 0 | T73: 0 | U73: 0 | V73: 0
E74: Timeline label counter | G74: counter | J74: =I74 + SUM(J71:J73) -> 1 | K74: 1 | L74: 1 | M74: 1 | N74: 1 | O74: 1 | P74: 1 | Q74: =P74 + SUM(Q71:Q73) -> 1 | R74: =Q74 + SUM(R71:R73) -> 2 | S74: =R74 + SUM(S71:S73) -> 2 | T74: =S74 + SUM(T71:T73) -> 2 | U74: =T74 + SUM(U71:U73) -> 2 | V74: =U74 + SUM(V71:V73) -> 2
E76: =Inputs!E$20 -> Pre - forecast period | F76: =Inputs!F$20 -> Pre-Fcst | G76: =Inputs!G$20 -> label
E77: =Inputs!E$21 -> Forecast period | F77: =Inputs!F$21 -> Forecast | G77: =Inputs!G$21 -> label
E78: =Inputs!E$22 -> Post - forecast period | F78: =Inputs!F$22 -> Post-Fcst | G78: =Inputs!G$22 -> label
E79: =E$74 -> Timeline label counter | F79: 0 | G79: counter | H79: 0 | I79: 0 | J79: 1 | K79: 1 | L79: 1 | M79: 1 | N79: 1 | O79: 1 | P79: 1 | Q79: 1 | R79: 2 | S79: 2 | T79: 2 | U79: 2 | V79: 2
E80: Timeline label | G80: label | J80: =INDEX($F76:$F78, J79) -> Pre-Fcst | K80: Pre-Fcst | L80: Pre-Fcst | M80: Pre-Fcst | N80: Pre-Fcst | O80: Pre-Fcst | P80: Pre-Fcst | Q80: =INDEX($F76:$F78, Q79) -> Pre-Fcst | R80: Forecast | S80: Forecast | T80: Forecast | U80: Forecast | V80: Forecast
B82: Modelling period check
E83: =E$55 -> Pre-forecast period flag | F83: =F$55 -> 0 | G83: flag | H83: 8 | I83: 0 | J83: 1 | K83: 1 | L83: 1 | M83: 1 | N83: 1 | O83: 1 | P83: 1 | Q83: 1 | R83: 0 | S83: 0 | T83: 0 | U83: 0 | V83: 0
E84: =E$49 -> Forecast period flag | F84: =F$49 -> 0 | G84: flag | H84: 5 | I84: 0 | J84: 0 | K84: 0 | L84: 0 | M84: 0 | N84: 0 | O84: 0 | P84: 0 | Q84: 0 | R84: 1 | S84: 1 | T84: 1 | U84: 1 | V84: 1
E85: =E$64 -> Post-forecast period flag | F85: 0 | G85: flag | H85: 0 | I85: 0 | J85: 0 | K85: 0 | L85: 0 | M85: 0 | N85: 0 | O85: 0 | P85: 0 | Q85: 0 | R85: 0 | S85: 0 | T85: 0 | U85: 0 | V85: 0
E86: No. of overlapping in flags | G86: # | H86: =SUM(J86:V86) -> 0 | J86: =MAX(0, SUM(J83:J85) - 1) -> 0 | K86: 0 | L86: 0 | M86: 0 | N86: 0 | O86: 0 | P86: 0 | Q86: =MAX(0, SUM(Q83:Q85) - 1) -> 0 | R86: 0 | S86: 0 | T86: 0 | U86: 0 | V86: 0
E87: Overlapping in periods - total | F87: =SUM(J86:V86) -> 0 | G87: periods
E89: =E$11 -> Model column total | F89: =F$11 -> 13 | G89: =G$11 -> columns
E90: =E$87 -> Overlapping in periods - total | F90: =F$87 -> 0 | G90: =G$87 -> periods
E91: =E$56 -> Pre-forecast period flag - total | F91: =F$56 -> 8 | G91: =G$56 -> periods
E92: =E$50 -> Total number of forecast periods | F92: =F$50 -> 5 | G92: =G$50 -> periods
E93: =E$65 -> Post-forecast period - total | F93: =F$65 -> 0 | G93: =G$65 -> periods
E94: Modelling period check | F94: =IF(SUM(F89:F90) - SUM(F91:F93) <> 0, 1, 0) -> 0 | G94: check
A97: FINANCIAL YEAR
E99: =Inputs!E$16 -> First modelling column financial year# | F99: =Inputs!F$16 -> 2013 | G99: =Inputs!G$16 -> year #
E100: =Inputs!E$17 -> Financial year end month number | F100: =Inputs!F$17 -> 3 | G100: =Inputs!G$17 -> month #
E101: =E$25 -> Model period ending | F101: 00:00:00 | G101: date | H101: 00:00:00 | I101: 00:00:00 | J101: 2013-03-31 | K101: 2014-03-31 | L101: 2015-03-31 | M101: 2016-03-31 | N101: 2017-03-31 | O101: 2018-03-31 | P101: 2019-03-31 | Q101: 2020-03-31 | R101: 2021-03-31 | S101: 2022-03-31 | T101: 2023-03-31 | U101: 2024-03-31 | V101: 2025-03-31
E102: =E$14 -> 1st model column flag | F102: 0 | G102: flag | H102: 1 | I102: 0 | J102: 1 | K102: 0 | L102: 0 | M102: 0 | N102: 0 | O102: 0 | P102: 0 | Q102: 0 | R102: 0 | S102: 0 | T102: 0 | U102: 0 | V102: 0
E103: Financial year ending | G103: year # | J103: =IF(J102 = 1, $F99, IF(J101 > (DATE(I103, $F100 + 1, 1) - 1), I103 + 1, I103)) -> 2013 | K103: 2014 | L103: 2015 | M103: 2016 | N103: 2017 | O103: 2018 | P103: 2019 | Q103: =IF(Q102 = 1, $F99, IF(Q101 > (DATE(P103, $F100 + 1, 1) - 1), P103 + 1, P103)) -> 2020 | R103: =IF(R102 = 1, $F99, IF(R101 > (DATE(Q103, $F100 + 1, 1) - 1), Q103 + 1, Q103)) -> 2021 | S103: =IF(S102 = 1, $F99, IF(S101 > (DATE(R103, $F100 + 1, 1) - 1), R103 + 1, R103)) -> 2022 | T103: =IF(T102 = 1, $F99, IF(T101 > (DATE(S103, $F100 + 1, 1) - 1), S103 + 1, S103)) -> 2023 | U103: =IF(U102 = 1, $F99, IF(U101 > (DATE(T103, $F100 + 1, 1) - 1), T103 + 1, T103)) -> 2024 | V103: =IF(V102 = 1, $F99, IF(V101 > (DATE(U103, $F100 + 1, 1) - 1), U103 + 1, U103)) -> 2025

Sheet Indexation
A1: =RIGHT(CELL("filename", $A$1), LEN(CELL("filename", $A$1)) - SEARCH("]", CELL("filename", $A$1))) -> Indexation
E2: =Time!E$25 -> Model period ending | J2: =Time!J$25 -> 2013-03-31 | K2: =Time!K$25 -> 2014-03-31 | L2: =Time!L$25 -> 2015-03-31 | M2: =Time!M$25 -> 2016-03-31 | N2: =Time!N$25 -> 2017-03-31 | O2: =Time!O$25 -> 2018-03-31 | P2: =Time!P$25 -> 2019-03-31 | Q2: =Time!Q$25 -> 2020-03-31 | R2: =Time!R$25 -> 2021-03-31 | S2: =Time!S$25 -> 2022-03-31 | T2: =Time!T$25 -> 2023-03-31 | U2: =Time!U$25 -> 2024-03-31 | V2: =Time!V$25 -> 2025-03-31
E3: =Time!E$80 -> Timeline label | J3: =Time!J$80 -> Pre-Fcst | K3: =Time!K$80 -> Pre-Fcst | L3: =Time!L$80 -> Pre-Fcst | M3: =Time!M$80 -> Pre-Fcst | N3: =Time!N$80 -> Pre-Fcst | O3: =Time!O$80 -> Pre-Fcst | P3: =Time!P$80 -> Pre-Fcst | Q3: =Time!Q$80 -> Pre-Fcst | R3: =Time!R$80 -> Forecast | S3: =Time!S$80 -> Forecast | T3: =Time!T$80 -> Forecast | U3: =Time!U$80 -> Forecast | V3: =Time!V$80 -> Forecast
E4: =Time!E$103 -> Financial year ending | J4: =Time!J$103 -> 2013 | K4: =Time!K$103 -> 2014 | L4: =Time!L$103 -> 2015 | M4: =Time!M$103 -> 2016 | N4: =Time!N$103 -> 2017 | O4: =Time!O$103 -> 2018 | P4: =Time!P$103 -> 2019 | Q4: =Time!Q$103 -> 2020 | R4: =Time!R$103 -> 2021 | S4: =Time!S$103 -> 2022 | T4: =Time!T$103 -> 2023 | U4: =Time!U$103 -> 2024 | V4: =Time!V$103 -> 2025
E5: =Time!E$10 -> Model column counter | F5: Constant | G5: Unit | H5: Total | J5: =Time!J$10 -> 1 | K5: =Time!K$10 -> 2 | L5: =Time!L$10 -> 3 | M5: =Time!M$10 -> 4 | N5: =Time!N$10 -> 5 | O5: =Time!O$10 -> 6 | P5: =Time!P$10 -> 7 | Q5: =Time!Q$10 -> 8 | R5: =Time!R$10 -> 9 | S5: =Time!S$10 -> 10 | T5: =Time!T$10 -> 11 | U5: =Time!U$10 -> 12 | V5: =Time!V$10 -> 13
A7: CPIH INDEXATION
B9: CPIH: Index value series
E10: =Inputs!E$35 -> Consumer Price Index for April | F10: =Inputs!F$35 -> 0 | G10: =Inputs!G$35 -> index | H10: =Inputs!H$35 -> 0 | I10: =Inputs!I$35 -> 0 | J10: =Inputs!J$35 -> 95.9 | K10: =Inputs!K$35 -> 98 | L10: =Inputs!L$35 -> 99.6 | M10: =Inputs!M$35 -> 99.9 | N10: =Inputs!N$35 -> 100.6 | O10: =Inputs!O$35 -> 103.2 | P10: =Inputs!P$35 -> 0 | Q10: =Inputs!Q$35 -> 0 | R10: =Inputs!R$35 -> 0 | S10: =Inputs!S$35 -> 0 | T10: =Inputs!T$35 -> 0 | U10: =Inputs!U$35 -> 0 | V10: =Inputs!V$35 -> 0
E11: =Inputs!E$36 -> Consumer Price Index for May | F11: =Inputs!F$36 -> 0 | G11: =Inputs!G$36 -> index | H11: =Inputs!H$36 -> 0 | I11: =Inputs!I$36 -> 0 | J11: =Inputs!J$36 -> 95.9 | K11: =Inputs!K$36 -> 98.2 | L11: =Inputs!L$36 -> 99.6 | M11: =Inputs!M$36 -> 100.1 | N11: =Inputs!N$36 -> 100.8 | O11: =Inputs!O$36 -> 103.5 | P11: =Inputs!P$36 -> 0 | Q11: =Inputs!Q$36 -> 0 | R11: =Inputs!R$36 -> 0 | S11: =Inputs!S$36 -> 0 | T11: =Inputs!T$36 -> 0 | U11: =Inputs!U$36 -> 0 | V11: =Inputs!V$36 -> 0
E12: =Inputs!E$37 -> Consumer Price Index for June | F12: =Inputs!F$37 -> 0 | G12: =Inputs!G$37 -> index | H12: =Inputs!H$37 -> 0 | I12: =Inputs!I$37 -> 0 | J12: =Inputs!J$37 -> 95.6 | K12: =Inputs!K$37 -> 98 | L12: =Inputs!L$37 -> 99.8 | M12: =Inputs!M$37 -> 100.1 | N12: =Inputs!N$37 -> 101 | O12: =Inputs!O$37 -> 0 | P12: =Inputs!P$37 -> 0 | Q12: =Inputs!Q$37 -> 0 | R12: =Inputs!R$37 -> 0 | S12: =Inputs!S$37 -> 0 | T12: =Inputs!T$37 -> 0 | U12: =Inputs!U$37 -> 0 | V12: =Inputs!V$37 -> 0
E13: =Inputs!E$38 -> Consumer Price Index for July | F13: =Inputs!F$38 -> 0 | G13: =Inputs!G$38 -> index | H13: =Inputs!H$38 -> 0 | I13: =Inputs!I$38 -> 0 | J13: =Inputs!J$38 -> 95.7 | K13: =Inputs!K$38 -> 98 | L13: =Inputs!L$38 -> 99.6 | M13: =Inputs!M$38 -> 100 | N13: =Inputs!N$38 -> 100.9 | O13: =Inputs!O$38 -> 0 | P13: =Inputs!P$38 -> 0 | Q13: =Inputs!Q$38 -> 0 | R13: =Inputs!R$38 -> 0 | S13: =Inputs!S$38 -> 0 | T13: =Inputs!T$38 -> 0 | U13: =Inputs!U$38 -> 0 | V13: =Inputs!V$38 -> 0
E14: =Inputs!E$39 -> Consumer Price Index for August | F14: =Inputs!F$39 -> 0 | G14: =Inputs!G$39 -> index | H14: =Inputs!H$39 -> 0 | I14: =Inputs!I$39 -> 0 | J14: =Inputs!J$39 -> 96.1 | K14: =Inputs!K$39 -> 98.4 | L14: =Inputs!L$39 -> 99.9 | M14: =Inputs!M$39 -> 100.3 | N14: =Inputs!N$39 -> 101.2 | O14: =Inputs!O$39 -> 0 | P14: =Inputs!P$39 -> 0 | Q14: =Inputs!Q$39 -> 0 | R14: =Inputs!R$39 -> 0 | S14: =Inputs!S$39 -> 0 | T14: =Inputs!T$39 -> 0 | U14: =Inputs!U$39 -> 0 | V14: =Inputs!V$39 -> 0
E15: =Inputs!E$40 -> Consumer Price Index for September | F15: =Inputs!F$40 -> 0 | G15: =Inputs!G$40 -> index | H15: =Inputs!H$40 -> 0 | I15: =Inputs!I$40 -> 0 | J15: =Inputs!J$40 -> 96.4 | K15: =Inputs!K$40 -> 98.7 | L15: =Inputs!L$40 -> 100 | M15: =Inputs!M$40 -> 100.2 | N15: =Inputs!N$40 -> 101.5 | O15: =Inputs!O$40 -> 0 | P15: =Inputs!P$40 -> 0 | Q15: =Inputs!Q$40 -> 0 | R15: =Inputs!R$40 -> 0 | S15: =Inputs!S$40 -> 0 | T15: =Inputs!T$40 -> 0 | U15: =Inputs!U$40 -> 0 | V15: =Inputs!V$40 -> 0
E16: =Inputs!E$41 -> Consumer Price Index for October | F16: =Inputs!F$41 -> 0 | G16: =Inputs!G$41 -> index | H16: =Inputs!H$41 -> 0 | I16: =Inputs!I$41 -> 0 | J16: =Inputs!J$41 -> 96.8 | K16: =Inputs!K$41 -> 98.8 | L16: =Inputs!L$41 -> 100.1 | M16: =Inputs!M$41 -> 100.3 | N16: =Inputs!N$41 -> 101.6 | O16: =Inputs!O$41 -> 0 | P16: =Inputs!P$41 -> 0 | Q16: =Inputs!Q$41 -> 0 | R16: =Inputs!R$41 -> 0 | S16: =Inputs!S$41 -> 0 | T16: =Inputs!T$41 -> 0 | U16: =Inputs!U$41 -> 0 | V16: =Inputs!V$41 -> 0
E17: =Inputs!E$42 -> Consumer Price Index for November | F17: =Inputs!F$42 -> 0 | G17: =Inputs!G$42 -> index | H17: =Inputs!H$42 -> 0 | I17: =Inputs!I$42 -> 0 | J17: =Inputs!J$42 -> 97 | K17: =Inputs!K$42 -> 98.8 | L17: =Inputs!L$42 -> 99.9 | M17: =Inputs!M$42 -> 100.3 | N17: =Inputs!N$42 -> 101.8 | O17: =Inputs!O$42 -> 0 | P17: =Inputs!P$42 -> 0 | Q17: =Inputs!Q$42 -> 0 | R17: =Inputs!R$42 -> 0 | S17: =Inputs!S$42 -> 0 | T17: =Inputs!T$42 -> 0 | U17: =Inputs!U$42 -> 0 | V17: =Inputs!V$42 -> 0
E18: =Inputs!E$43 -> Consumer Price Index for December | F18: =Inputs!F$43 -> 0 | G18: =Inputs!G$43 -> index | H18: =Inputs!H$43 -> 0 | I18: =Inputs!I$43 -> 0 | J18: =Inputs!J$43 -> 97.3 | K18: =Inputs!K$43 -> 99.2 | L18: =Inputs!L$43 -> 99.9 | M18: =Inputs!M$43 -> 100.4 | N18: =Inputs!N$43 -> 102.2 | O18: =Inputs!O$43 -> 0 | P18: =Inputs!P$43 -> 0 | Q18: =Inputs!Q$43 -> 0 | R18: =Inputs!R$43 -> 0 | S18: =Inputs!S$43 -> 0 | T18: =Inputs!T$43 -> 0 | U18: =Inputs!U$43 -> 0 | V18: =Inputs!V$43 -> 0
E19: =Inputs!E$44 -> Consumer Price Index for January | F19: =Inputs!F$44 -> 0 | G19: =Inputs!G$44 -> index | H19: =Inputs!H$44 -> 0 | I19: =Inputs!I$44 -> 0 | J19: =Inputs!J$44 -> 97 | K19: =Inputs!K$44 -> 98.7 | L19: =Inputs!L$44 -> 99.2 | M19: =Inputs!M$44 -> 99.9 | N19: =Inputs!N$44 -> 101.8 | O19: =Inputs!O$44 -> 0 | P19: =Inputs!P$44 -> 0 | Q19: =Inputs!Q$44 -> 0 | R19: =Inputs!R$44 -> 0 | S19: =Inputs!S$44 -> 0 | T19: =Inputs!T$44 -> 0 | U19: =Inputs!U$44 -> 0 | V19: =Inputs!V$44 -> 0
E20: =Inputs!E$45 -> Consumer Price Index for February | F20: =Inputs!F$45 -> 0 | G20: =Inputs!G$45 -> index | H20: =Inputs!H$45 -> 0 | I20: =Inputs!I$45 -> 0 | J20: =Inputs!J$45 -> 97.5 | K20: =Inputs!K$45 -> 99.1 | L20: =Inputs!L$45 -> 99.5 | M20: =Inputs!M$45 -> 100.1 | N20: =Inputs!N$45 -> 102.4 | O20: =Inputs!O$45 -> 0 | P20: =Inputs!P$45 -> 0 | Q20: =Inputs!Q$45 -> 0 | R20: =Inputs!R$45 -> 0 | S20: =Inputs!S$45 -> 0 | T20: =Inputs!T$45 -> 0 | U20: =Inputs!U$45 -> 0 | V20: =Inputs!V$45 -> 0
E21: =Inputs!E$46 -> Consumer Price Index for March | F21: =Inputs!F$46 -> 0 | G21: =Inputs!G$46 -> index | H21: =Inputs!H$46 -> 0 | I21: =Inputs!I$46 -> 0 | J21: =Inputs!J$46 -> 97.8 | K21: =Inputs!K$46 -> 99.3 | L21: =Inputs!L$46 -> 99.6 | M21: =Inputs!M$46 -> 100.4 | N21: =Inputs!N$46 -> 102.7 | O21: =Inputs!O$46 -> 0 | P21: =Inputs!P$46 -> 0 | Q21: =Inputs!Q$46 -> 0 | R21: =Inputs!R$46 -> 0 | S21: =Inputs!S$46 -> 0 | T21: =Inputs!T$46 -> 0 | U21: =Inputs!U$46 -> 0 | V21: =Inputs!V$46 -> 0
E23: =Inputs!E$48 -> CPIH: Assumed percentage increase for unpopulated monthly values | F23: =Inputs!F$48 -> 0 | G23: =Inputs!G$48 -> % | H23: =Inputs!H$48 -> 0 | I23: =Inputs!I$48 -> 0 | J23: =Inputs!J$48 -> 0 | K23: =Inputs!K$48 -> 0 | L23: =Inputs!L$48 -> 0 | M23: =Inputs!M$48 -> 0 | N23: =Inputs!N$48 -> 0 | O23: =Inputs!O$48 -> 0 | P23: =Inputs!P$48 -> 0 | Q23: =Inputs!Q$48 -> 0 | R23: =Inputs!R$48 -> 0 | S23: =Inputs!S$48 -> 0 | T23: =Inputs!T$48 -> 0 | U23: =Inputs!U$48 -> 0 | V23: =Inputs!V$48 -> 0
E25: CPIH: April - index | G25: index | J25: =IF(J10 > 0, J10, I25 * (1 + J$23)) -> 95.9 | K25: =IF(K10 > 0, K10, J25 * (1 + K$23)) -> 98 | L25: 99.6 | M25: 99.9 | N25: 100.6 | O25: 103.2 | P25: 103.2 | Q25: =IF(Q10 > 0, Q10, P25 * (1 + Q$23)) -> 103.2 | R25: =IF(R10 > 0, R10, Q25 * (1 + R$23)) -> 103.2 | S25: =IF(S10 > 0, S10, R25 * (1 + S$23)) -> 103.2 | T25: =IF(T10 > 0, T10, S25 * (1 + T$23)) -> 103.2 | U25: =IF(U10 > 0, U10, T25 * (1 + U$23)) -> 103.2 | V25: =IF(V10 > 0, V10, U25 * (1 + V$23)) -> 103.2
E26: CPIH: May - index | G26: index | J26: =IF(J11 > 0, J11, I26 * (1 + J$23)) -> 95.9 | K26: 98.2 | L26: 99.6 | M26: 100.1 | N26: 100.8 | O26: 103.5 | P26: 103.5 | Q26: 103.5 | R26: 103.5 | S26: 103.5 | T26: 103.5 | U26: 103.5 | V26: 103.5
E27: CPIH: June - index | G27: index | J27: 95.6 | K27: 98 | L27: 99.8 | M27: 100.1 | N27: 101 | O27: 101 | P27: 101 | Q27: 101 | R27: 101 | S27: 101 | T27: 101 | U27: 101 | V27: 101
E28: CPIH: July - index | G28: index | J28: 95.7 | K28: 98 | L28: 99.6 | M28: 100 | N28: 100.9 | O28: 100.9 | P28: 100.9 | Q28: 100.9 | R28: 100.9 | S28: 100.9 | T28: 100.9 | U28: 100.9 | V28: 100.9
E29: CPIH: August - index | G29: index | J29: 96.1 | K29: 98.4 | L29: 99.9 | M29: 100.3 | N29: 101.2 | O29: 101.2 | P29: 101.2 | Q29: 101.2 | R29: 101.2 | S29: 101.2 | T29: 101.2 | U29: 101.2 | V29: 101.2
E30: CPIH: September- index | G30: index | J30: 96.4 | K30: 98.7 | L30: 100 | M30: 100.2 | N30: 101.5 | O30: 101.5 | P30: 101.5 | Q30: 101.5 | R30: 101.5 | S30: 101.5 | T30: 101.5 | U30: 101.5 | V30: 101.5
E31: CPIH: October - index | G31: index | J31: 96.8 | K31: 98.8 | L31: 100.1 | M31: 100.3 | N31: 101.6 | O31: 101.6 | P31: 101.6 | Q31: 101.6 | R31: 101.6 | S31: 101.6 | T31: 101.6 | U31: 101.6 | V31: 101.6
E32: CPIH: November - index | G32: index | J32: 97 | K32: 98.8 | L32: 99.9 | M32: 100.3 | N32: 101.8 | O32: 101.8 | P32: 101.8 | Q32: 101.8 | R32: 101.8 | S32: 101.8 | T32: 101.8 | U32: 101.8 | V32: 101.8
E33: CPIH: December - index | G33: index | J33: 97.3 | K33: 99.2 | L33: 99.9 | M33: 100.4 | N33: 102.2 | O33: 102.2 | P33: 102.2 | Q33: 102.2 | R33: 102.2 | S33: 102.2 | T33: 102.2 | U33: 102.2 | V33: 102.2
E34: CPIH: January - index | G34: index | J34: 97 | K34: 98.7 | L34: 99.2 | M34: 99.9 | N34: 101.8 | O34: 101.8 | P34: 101.8 | Q34: 101.8 | R34: 101.8 | S34: 101.8 | T34: 101.8 | U34: 101.8 | V34: 101.8
E35: CPIH: February - index | G35: index | J35: 97.5 | K35: 99.1 | L35: 99.5 | M35: 100.1 | N35: 102.4 | O35: 102.4 | P35: 102.4 | Q35: 102.4 | R35: 102.4 | S35: 102.4 | T35: 102.4 | U35: 102.4 | V35: 102.4
E36: CPIH: March - index | G36: index | J36: 97.8 | K36: 99.3 | L36: 99.6 | M36: 100.4 | N36: 102.7 | O36: 102.7 | P36: 102.7 | Q36: 102.7 | R36: 102.7 | S36: 102.7 | T36: 102.7 | U36: 102.7 | V36: 102.7
E38: CPIH: Financial year average - index | G38: index | J38: =AVERAGE(J25:J36) -> 96.58333333 | K38: 98.6 | L38: 99.725 | M38: 100.1666667 | N38: 101.5416667 | O38: 101.9833333 | P38: 101.9833333 | Q38: =AVERAGE(Q25:Q36) -> 101.9833333 | R38: 101.9833333 | S38: 101.9833333 | T38: 101.9833333 | U38: 101.9833333 | V38: 101.9833333
A41: RPI INDEXATION
B43: RPI: Index value series
E44: =Inputs!E$52 -> Retail Price Index for April | F44: =Inputs!F$52 -> 0 | G44: =Inputs!G$52 -> index | H44: =Inputs!H$52 -> 0 | I44: =Inputs!I$52 -> 0 | J44: =Inputs!J$52 -> 242.5 | K44: =Inputs!K$52 -> 249.5 | L44: =Inputs!L$52 -> 255.7 | M44: =Inputs!M$52 -> 258 | N44: =Inputs!N$52 -> 261.4 | O44: =Inputs!O$52 -> 270.6 | P44: =Inputs!P$52 -> 0 | Q44: =Inputs!Q$52 -> 0 | R44: =Inputs!R$52 -> 0 | S44: =Inputs!S$52 -> 0 | T44: =Inputs!T$52 -> 0 | U44: =Inputs!U$52 -> 0 | V44: =Inputs!V$52 -> 0
E45: =Inputs!E$53 -> Retail Price Index for May | F45: =Inputs!F$53 -> 0 | G45: =Inputs!G$53 -> index | H45: =Inputs!H$53 -> 0 | I45: =Inputs!I$53 -> 0 | J45: =Inputs!J$53 -> 242.4 | K45: =Inputs!K$53 -> 250 | L45: =Inputs!L$53 -> 255.9 | M45: =Inputs!M$53 -> 258.5 | N45: =Inputs!N$53 -> 262.1 | O45: =Inputs!O$53 -> 271.7 | P45: =Inputs!P$53 -> 0 | Q45: =Inputs!Q$53 -> 0 | R45: =Inputs!R$53 -> 0 | S45: =Inputs!S$53 -> 0 | T45: =Inputs!T$53 -> 0 | U45: =Inputs!U$53 -> 0 | V45: =Inputs!V$53 -> 0
E46: =Inputs!E$54 -> Retail Price Index for June | F46: =Inputs!F$54 -> 0 | G46: =Inputs!G$54 -> index | H46: =Inputs!H$54 -> 0 | I46: =Inputs!I$54 -> 0 | J46: =Inputs!J$54 -> 241.8 | K46: =Inputs!K$54 -> 249.7 | L46: =Inputs!L$54 -> 256.3 | M46: =Inputs!M$54 -> 258.9 | N46: =Inputs!N$54 -> 263.1 | O46: =Inputs!O$54 -> 0 | P46: =Inputs!P$54 -> 0 | Q46: =Inputs!Q$54 -> 0 | R46: =Inputs!R$54 -> 0 | S46: =Inputs!S$54 -> 0 | T46: =Inputs!T$54 -> 0 | U46: =Inputs!U$54 -> 0 | V46: =Inputs!V$54 -> 0
E47: =Inputs!E$55 -> Retail Price Index for July | F47: =Inputs!F$55 -> 0 | G47: =Inputs!G$55 -> index | H47: =Inputs!H$55 -> 0 | I47: =Inputs!I$55 -> 0 | J47: =Inputs!J$55 -> 242.1 | K47: =Inputs!K$55 -> 249.7 | L47: =Inputs!L$55 -> 256 | M47: =Inputs!M$55 -> 258.6 | N47: =Inputs!N$55 -> 263.4 | O47: =Inputs!O$55 -> 0 | P47: =Inputs!P$55 -> 0 | Q47: =Inputs!Q$55 -> 0 | R47: =Inputs!R$55 -> 0 | S47: =Inputs!S$55 -> 0 | T47: =Inputs!T$55 -> 0 | U47: =Inputs!U$55 -> 0 | V47: =Inputs!V$55 -> 0
E48: =Inputs!E$56 -> Retail Price Index for August | F48: =Inputs!F$56 -> 0 | G48: =Inputs!G$56 -> index | H48: =Inputs!H$56 -> 0 | I48: =Inputs!I$56 -> 0 | J48: =Inputs!J$56 -> 243 | K48: =Inputs!K$56 -> 251 | L48: =Inputs!L$56 -> 257 | M48: =Inputs!M$56 -> 259.8 | N48: =Inputs!N$56 -> 264.4 | O48: =Inputs!O$56 -> 0 | P48: =Inputs!P$56 -> 0 | Q48: =Inputs!Q$56 -> 0 | R48: =Inputs!R$56 -> 0 | S48: =Inputs!S$56 -> 0 | T48: =Inputs!T$56 -> 0 | U48: =Inputs!U$56 -> 0 | V48: =Inputs!V$56 -> 0
E49: =Inputs!E$57 -> Retail Price Index for September | F49: =Inputs!F$57 -> 0 | G49: =Inputs!G$57 -> index | H49: =Inputs!H$57 -> 0 | I49: =Inputs!I$57 -> 0 | J49: =Inputs!J$57 -> 244.2 | K49: =Inputs!K$57 -> 251.9 | L49: =Inputs!L$57 -> 257.6 | M49: =Inputs!M$57 -> 259.6 | N49: =Inputs!N$57 -> 264.9 | O49: =Inputs!O$57 -> 0 | P49: =Inputs!P$57 -> 0 | Q49: =Inputs!Q$57 -> 0 | R49: =Inputs!R$57 -> 0 | S49: =Inputs!S$57 -> 0 | T49: =Inputs!T$57 -> 0 | U49: =Inputs!U$57 -> 0 | V49: =Inputs!V$57 -> 0
E50: =Inputs!E$58 -> Retail Price Index for October | F50: =Inputs!F$58 -> 0 | G50: =Inputs!G$58 -> index | H50: =Inputs!H$58 -> 0 | I50: =Inputs!I$58 -> 0 | J50: =Inputs!J$58 -> 245.6 | K50: =Inputs!K$58 -> 251.9 | L50: =Inputs!L$58 -> 257.7 | M50: =Inputs!M$58 -> 259.5 | N50: =Inputs!N$58 -> 264.8 | O50: =Inputs!O$58 -> 0 | P50: =Inputs!P$58 -> 0 | Q50: =Inputs!Q$58 -> 0 | R50: =Inputs!R$58 -> 0 | S50: =Inputs!S$58 -> 0 | T50: =Inputs!T$58 -> 0 | U50: =Inputs!U$58 -> 0 | V50: =Inputs!V$58 -> 0
E51: =Inputs!E$59 -> Retail Price Index for November | F51: =Inputs!F$59 -> 0 | G51: =Inputs!G$59 -> index | H51: =Inputs!H$59 -> 0 | I51: =Inputs!I$59 -> 0 | J51: =Inputs!J$59 -> 245.6 | K51: =Inputs!K$59 -> 252.1 | L51: =Inputs!L$59 -> 257.1 | M51: =Inputs!M$59 -> 259.8 | N51: =Inputs!N$59 -> 265.5 | O51: =Inputs!O$59 -> 0 | P51: =Inputs!P$59 -> 0 | Q51: =Inputs!Q$59 -> 0 | R51: =Inputs!R$59 -> 0 | S51: =Inputs!S$59 -> 0 | T51: =Inputs!T$59 -> 0 | U51: =Inputs!U$59 -> 0 | V51: =Inputs!V$59 -> 0
E52: =Inputs!E$60 -> Retail Price Index for December | F52: =Inputs!F$60 -> 0 | G52: =Inputs!G$60 -> index | H52: =Inputs!H$60 -> 0 | I52: =Inputs!I$60 -> 0 | J52: =Inputs!J$60 -> 246.8 | K52: =Inputs!K$60 -> 253.4 | L52: =Inputs!L$60 -> 257.5 | M52: =Inputs!M$60 -> 260.6 | N52: =Inputs!N$60 -> 267.1 | O52: =Inputs!O$60 -> 0 | P52: =Inputs!P$60 -> 0 | Q52: =Inputs!Q$60 -> 0 | R52: =Inputs!R$60 -> 0 | S52: =Inputs!S$60 -> 0 | T52: =Inputs!T$60 -> 0 | U52: =Inputs!U$60 -> 0 | V52: =Inputs!V$60 -> 0
E53: =Inputs!E$61 -> Retail Price Index for January | F53: =Inputs!F$61 -> 0 | G53: =Inputs!G$61 -> index | H53: =Inputs!H$61 -> 0 | I53: =Inputs!I$61 -> 0 | J53: =Inputs!J$61 -> 245.8 | K53: =Inputs!K$61 -> 252.6 | L53: =Inputs!L$61 -> 255.4 | M53: =Inputs!M$61 -> 258.8 | N53: =Inputs!N$61 -> 265.5 | O53: =Inputs!O$61 -> 0 | P53: =Inputs!P$61 -> 0 | Q53: =Inputs!Q$61 -> 0 | R53: =Inputs!R$61 -> 0 | S53: =Inputs!S$61 -> 0 | T53: =Inputs!T$61 -> 0 | U53: =Inputs!U$61 -> 0 | V53: =Inputs!V$61 -> 0
E54: =Inputs!E$62 -> Retail Price Index for February | F54: =Inputs!F$62 -> 0 | G54: =Inputs!G$62 -> index | H54: =Inputs!H$62 -> 0 | I54: =Inputs!I$62 -> 0 | J54: =Inputs!J$62 -> 247.6 | K54: =Inputs!K$62 -> 254.2 | L54: =Inputs!L$62 -> 256.7 | M54: =Inputs!M$62 -> 260 | N54: =Inputs!N$62 -> 268.4 | O54: =Inputs!O$62 -> 0 | P54: =Inputs!P$62 -> 0 | Q54: =Inputs!Q$62 -> 0 | R54: =Inputs!R$62 -> 0 | S54: =Inputs!S$62 -> 0 | T54: =Inputs!T$62 -> 0 | U54: =Inputs!U$62 -> 0 | V54: =Inputs!V$62 -> 0
E55: =Inputs!E$63 -> Retail Price Index for March | F55: =Inputs!F$63 -> 0 | G55: =Inputs!G$63 -> index | H55: =Inputs!H$63 -> 0 | I55: =Inputs!I$63 -> 0 | J55: =Inputs!J$63 -> 248.7 | K55: =Inputs!K$63 -> 254.8 | L55: =Inputs!L$63 -> 257.1 | M55: =Inputs!M$63 -> 261.1 | N55: =Inputs!N$63 -> 269.3 | O55: =Inputs!O$63 -> 0 | P55: =Inputs!P$63 -> 0 | Q55: =Inputs!Q$63 -> 0 | R55: =Inputs!R$63 -> 0 | S55: =Inputs!S$63 -> 0 | T55: =Inputs!T$63 -> 0 | U55: =Inputs!U$63 -> 0 | V55: =Inputs!V$63 -> 0
E57: =Inputs!E$65 -> RPI: Assumed percentage increase for unpopulated monthly values | F57: =Inputs!F$65 -> 0 | G57: =Inputs!G$65 -> % | H57: =Inputs!H$65 -> 0 | I57: =Inputs!I$65 -> 0 | J57: =Inputs!J$65 -> 0 | K57: =Inputs!K$65 -> 0 | L57: =Inputs!L$65 -> 0 | M57: =Inputs!M$65 -> 0 | N57: =Inputs!N$65 -> 0 | O57: =Inputs!O$65 -> 0 | P57: =Inputs!P$65 -> 0 | Q57: =Inputs!Q$65 -> 0 | R57: =Inputs!R$65 -> 0 | S57: =Inputs!S$65 -> 0 | T57: =Inputs!T$65 -> 0 | U57: =Inputs!U$65 -> 0 | V57: =Inputs!V$65 -> 0
E59: RPI: April - index | G59: index | J59: =IF(J44 > 0, J44, I59 * (1 + J$57)) -> 242.5 | K59: =IF(K44 > 0, K44, J59 * (1 + K$57)) -> 249.5 | L59: 255.7 | M59: 258 | N59: 261.4 | O59: 270.6 | P59: 270.6 | Q59: =IF(Q44 > 0, Q44, P59 * (1 + Q$57)) -> 270.6 | R59: =IF(R44 > 0, R44, Q59 * (1 + R$57)) -> 270.6 | S59: =IF(S44 > 0, S44, R59 * (1 + S$57)) -> 270.6 | T59: =IF(T44 > 0, T44, S59 * (1 + T$57)) -> 270.6 | U59: =IF(U44 > 0, U44, T59 * (1 + U$57)) -> 270.6 | V59: =IF(V44 > 0, V44, U59 * (1 + V$57)) -> 270.6
E60: RPI: May - index | G60: index | J60: =IF(J45 > 0, J45, I60 * (1 + J$57)) -> 242.4 | K60: 250 | L60: 255.9 | M60: 258.5 | N60: 262.1 | O60: 271.7 | P60: 271.7 | Q60: 271.7 | R60: 271.7 | S60: 271.7 | T60: 271.7 | U60: 271.7 | V60: 271.7
E61: RPI: June - index | G61: index | J61: =IF(J46 > 0, J46, I61 * (1 + J$57)) -> 241.8 | K61: 249.7 | L61: 256.3 | M61: 258.9 | N61: 263.1 | O61: 263.1 | P61: 263.1 | Q61: 263.1 | R61: 263.1 | S61: 263.1 | T61: 263.1 | U61: 263.1 | V61: 263.1
E62: RPI: July - index | G62: index | J62: =IF(J47 > 0, J47, I62 * (1 + J$57)) -> 242.1 | K62: 249.7 | L62: 256 | M62: 258.6 | N62: 263.4 | O62: 263.4 | P62: 263.4 | Q62: 263.4 | R62: 263.4 | S62: 263.4 | T62: 263.4 | U62: 263.4 | V62: 263.4
E63: RPI: August - index | G63: index | J63: =IF(J48 > 0, J48, I63 * (1 + J$57)) -> 243 | K63: 251 | L63: 257 | M63: 259.8 | N63: 264.4 | O63: 264.4 | P63: 264.4 | Q63: 264.4 | R63: 264.4 | S63: 264.4 | T63: 264.4 | U63: 264.4 | V63: 264.4
E64: RPI: September- index | G64: index | J64: =IF(J49 > 0, J49, I64 * (1 + J$57)) -> 244.2 | K64: 251.9 | L64: 257.6 | M64: 259.6 | N64: 264.9 | O64: 264.9 | P64: 264.9 | Q64: 264.9 | R64: 264.9 | S64: 264.9 | T64: 264.9 | U64: 264.9 | V64: 264.9
E65: RPI: October - index | G65: index | J65: =IF(J50 > 0, J50, I65 * (1 + J$57)) -> 245.6 | K65: 251.9 | L65: 257.7 | M65: 259.5 | N65: 264.8 | O65: 264.8 | P65: 264.8 | Q65: 264.8 | R65: 264.8 | S65: 264.8 | T65: 264.8 | U65: 264.8 | V65: 264.8
E66: RPI: November - index | G66: index | J66: =IF(J51 > 0, J51, I66 * (1 + J$57)) -> 245.6 | K66: 252.1 | L66: 257.1 | M66: 259.8 | N66: 265.5 | O66: 265.5 | P66: 265.5 | Q66: 265.5 | R66: 265.5 | S66: 265.5 | T66: 265.5 | U66: 265.5 | V66: 265.5
E67: RPI: December - index | G67: index | J67: =IF(J52 > 0, J52, I67 * (1 + J$57)) -> 246.8 | K67: 253.4 | L67: 257.5 | M67: 260.6 | N67: 267.1 | O67: 267.1 | P67: 267.1 | Q67: 267.1 | R67: 267.1 | S67: 267.1 | T67: 267.1 | U67: 267.1 | V67: 267.1
E68: RPI: January - index | G68: index | J68: =IF(J53 > 0, J53, I68 * (1 + J$57)) -> 245.8 | K68: 252.6 | L68: 255.4 | M68: 258.8 | N68: 265.5 | O68: 265.5 | P68: 265.5 | Q68: 265.5 | R68: 265.5 | S68: 265.5 | T68: 265.5 | U68: 265.5 | V68: 265.5
E69: RPI: February - index | G69: index | J69: =IF(J54 > 0, J54, I69 * (1 + J$57)) -> 247.6 | K69: 254.2 | L69: 256.7 | M69: 260 | N69: 268.4 | O69: 268.4 | P69: 268.4 | Q69: 268.4 | R69: 268.4 | S69: 268.4 | T69: 268.4 | U69: 268.4 | V69: 268.4
E70: RPI: March - index | G70: index | J70: =IF(J55 > 0, J55, I70 * (1 + J$57)) -> 248.7 | K70: 254.8 | L70: 257.1 | M70: 261.1 | N70: 269.3 | O70: 269.3 | P70: 269.3 | Q70: 269.3 | R70: 269.3 | S70: 269.3 | T70: 269.3 | U70: 269.3 | V70: 269.3
E72: RPI: Financial year average - index | G72: index | J72: =AVERAGE(J59:J70) -> 244.675 | K72: 251.7333333 | L72: 256.6666667 | M72: 259.4333333 | N72: 264.9916667 | O72: 266.5583333 | P72: 266.5583333 | Q72: =AVERAGE(Q59:Q70) -> 266.5583333 | R72: 266.5583333 | S72: 266.5583333 | T72: 266.5583333 | U72: 266.5583333 | V72: 266.5583333
A75: INFLATION
B77: ="Inflation from " & F78 & " FYA to " & F79 & " FYE - RPI" -> Inflation from 2013 FYA to 2020 FYE - RPI
E78: =Inputs!E$69 -> Year reference for FYA base price 1 | F78: =Inputs!F$69 -> 2013 | G78: =Inputs!G$69 -> year #
E79: =Inputs!E$73 -> Year reference for FYE end price | F79: =Inputs!F$73 -> 2020 | G79: =Inputs!G$73 -> year #
E80: =E$72 -> RPI: Financial year average - index | F80: 0 | G80: index | H80: 0 | I80: 0 | J80: 244.675 | K80: 251.7333333 | L80: 256.6666667 | M80: 259.4333333 | N80: 264.9916667 | O80: 266.5583333 | P80: 266.5583333 | Q80: 266.5583333 | R80: 266.5583333 | S80: 266.5583333 | T80: 266.5583333 | U80: 266.5583333 | V80: 266.5583333
E81: =E$70 -> RPI: March - index | F81: 0 | G81: index | H81: 0 | I81: 0 | J81: 248.7 | K81: 254.8 | L81: 257.1 | M81: 261.1 | N81: 269.3 | O81: 269.3 | P81: 269.3 | Q81: 269.3 | R81: 269.3 | S81: 269.3 | T81: 269.3 | U81: 269.3 | V81: 269.3
E82: ="RPI inflate from " & F78 & " FYA to " & F79 & " FYE" -> RPI inflate from 2013 FYA to 2020 FYE | F82: =INDEX($J81:$V81, 1, MATCH($F79,$J$4:$V$4)) / INDEX($J80:$V80, 1, MATCH($F78,$J$4:$V$4)) -> 1.100643711 | G82: factor
B84: ="Inflation from " & F85 & " FYA to " & F86 & " FYE - RPI" -> Inflation from 2018 FYA to 2020 FYE - RPI
E85: =Inputs!E$70 -> Year reference for FYA base price 2 | F85: =Inputs!F$70 -> 2018 | G85: =Inputs!G$70 -> year #
E86: =Inputs!E$73 -> Year reference for FYE end price | F86: =Inputs!F$73 -> 2020 | G86: =Inputs!G$73 -> year #
E87: =E$72 -> RPI: Financial year average - index | F87: 0 | G87: index | H87: 0 | I87: 0 | J87: 244.675 | K87: 251.7333333 | L87: 256.6666667 | M87: 259.4333333 | N87: 264.9916667 | O87: 266.5583333 | P87: 266.5583333 | Q87: 266.5583333 | R87: 266.5583333 | S87: 266.5583333 | T87: 266.5583333 | U87: 266.5583333 | V87: 266.5583333
E88: =E$70 -> RPI: March - index | F88: 0 | G88: index | H88: 0 | I88: 0 | J88: 248.7 | K88: 254.8 | L88: 257.1 | M88: 261.1 | N88: 269.3 | O88: 269.3 | P88: 269.3 | Q88: 269.3 | R88: 269.3 | S88: 269.3 | T88: 269.3 | U88: 269.3 | V88: 269.3
E89: ="RPI inflate from " & F85 & " FYA to " & F86 & " FYE" -> RPI inflate from 2018 FYA to 2020 FYE | F89: =INDEX($J88:$V88, 1, MATCH($F86,$J$4:$V$4)) / INDEX($J87:$V87, 1, MATCH($F85,$J$4:$V$4)) -> 1.010285428 | G89: factor
B91: ="Inflation from " & F92 & " FYE to " & F93 & " FYE - RPI" -> Inflation from 2020 FYE to 2020 FYE - RPI
E92: =Inputs!E$71 -> Year reference for FYE base price 1 | F92: =Inputs!F$71 -> 2020 | G92: =Inputs!G$71 -> year #
E93: =Inputs!E$73 -> Year reference for FYE end price | F93: =Inputs!F$73 -> 2020 | G93: =Inputs!G$73 -> year #
E94: =E$70 -> RPI: March - index | F94: 0 | G94: index | H94: 0 | I94: 0 | J94: 248.7 | K94: 254.8 | L94: 257.1 | M94: 261.1 | N94: 269.3 | O94: 269.3 | P94: 269.3 | Q94: 269.3 | R94: 269.3 | S94: 269.3 | T94: 269.3 | U94: 269.3 | V94: 269.3
E95: ="RPI inflate from " & F92 & " FYE to " & F93 & " FYE" -> RPI inflate from 2020 FYE to 2020 FYE | F95: =INDEX($J94:$V94, 1, MATCH($F93,$J$4:$V$4)) / INDEX($J94:$V94, 1, MATCH($F92,$J$4:$V$4)) -> 1 | G95: factor
B97: ="Inflation from November " & F98 & " FYE to " & F99 & " FYE - RPI" -> Inflation from November 2019 FYE to 2020 FYE - RPI
E98: =Inputs!E$72 -> Year reference for FYE base price 2 | F98: =Inputs!F$72 -> 2019 | G98: =Inputs!G$72 -> year #
E99: =Inputs!E$73 -> Year reference for FYE end price | F99: =Inputs!F$73 -> 2020 | G99: =Inputs!G$73 -> year #
E100: =E$66 -> RPI: November - index | F100: 0 | G100: index | H100: 0 | I100: 0 | J100: 245.6 | K100: 252.1 | L100: 257.1 | M100: 259.8 | N100: 265.5 | O100: 265.5 | P100: 265.5 | Q100: 265.5 | R100: 265.5 | S100: 265.5 | T100: 265.5 | U100: 265.5 | V100: 265.5
E101: =E$70 -> RPI: March - index | F101: 0 | G101: index | H101: 0 | I101: 0 | J101: 248.7 | K101: 254.8 | L101: 257.1 | M101: 261.1 | N101: 269.3 | O101: 269.3 | P101: 269.3 | Q101: 269.3 | R101: 269.3 | S101: 269.3 | T101: 269.3 | U101: 269.3 | V101: 269.3
E102: ="RPI inflate from November " & F98 & " FYE to " & F99 & " FYE" -> RPI inflate from November 2019 FYE to 2020 FYE | F102: =INDEX($J101:$V101, 1, MATCH($F99,$J$4:$V$4)) / INDEX($J100:$V100, 1, MATCH($F98,$J$4:$V$4)) -> 1.014312618 | G102: factor
A105: DEFLATION
E107: =Inputs!E$77 -> Year reference for FYE base price | F107: =Inputs!F$77 -> 2020 | G107: =Inputs!G$77 -> year #
E108: =Inputs!E$78 -> Year reference for FYA end price | F108: =Inputs!F$78 -> 2018 | G108: =Inputs!G$78 -> year #
E109: =E$70 -> RPI: March - index | F109: 0 | G109: index | H109: 0 | I109: 0 | J109: 248.7 | K109: 254.8 | L109: 257.1 | M109: 261.1 | N109: 269.3 | O109: 269.3 | P109: 269.3 | Q109: 269.3 | R109: 269.3 | S109: 269.3 | T109: 269.3 | U109: 269.3 | V109: 269.3
E110: =E$38 -> CPIH: Financial year average - index | F110: 0 | G110: index | H110: 0 | I110: 0 | J110: 96.58333333 | K110: 98.6 | L110: 99.725 | M110: 100.1666667 | N110: 101.5416667 | O110: 101.9833333 | P110: 101.9833333 | Q110: 101.9833333 | R110: 101.9833333 | S110: 101.9833333 | T110: 101.9833333 | U110: 101.9833333 | V110: 101.9833333
E111: ="CPIH deflate from " & F107 & " FYE to " & F108 & " FYA" -> CPIH deflate from 2020 FYE to 2018 FYA | F111: =INDEX($J110:$V110, 1, MATCH($F108,$J$4:$V$4)) / INDEX($J109:$V109, 1, MATCH($F107,$J$4:$V$4)) -> 0.3786978586 | G111: factor

Sheet Calc
A1: =RIGHT(CELL("filename", $A$1), LEN(CELL("filename", $A$1)) - SEARCH("]", CELL("filename", $A$1))) -> Calc
E2: =Time!E$25 -> Model period ending | J2: =Time!J$25 -> 2013-03-31 | K2: =Time!K$25 -> 2014-03-31 | L2: =Time!L$25 -> 2015-03-31 | M2: =Time!M$25 -> 2016-03-31 | N2: =Time!N$25 -> 2017-03-31 | O2: =Time!O$25 -> 2018-03-31 | P2: =Time!P$25 -> 2019-03-31 | Q2: =Time!Q$25 -> 2020-03-31 | R2: =Time!R$25 -> 2021-03-31 | S2: =Time!S$25 -> 2022-03-31 | T2: =Time!T$25 -> 2023-03-31 | U2: =Time!U$25 -> 2024-03-31 | V2: =Time!V$25 -> 2025-03-31
E3: =Time!E$80 -> Timeline label | J3: =Time!J$80 -> Pre-Fcst | K3: =Time!K$80 -> Pre-Fcst | L3: =Time!L$80 -> Pre-Fcst | M3: =Time!M$80 -> Pre-Fcst | N3: =Time!N$80 -> Pre-Fcst | O3: =Time!O$80 -> Pre-Fcst | P3: =Time!P$80 -> Pre-Fcst | Q3: =Time!Q$80 -> Pre-Fcst | R3: =Time!R$80 -> Forecast | S3: =Time!S$80 -> Forecast | T3: =Time!T$80 -> Forecast | U3: =Time!U$80 -> Forecast | V3: =Time!V$80 -> Forecast
E4: =Time!E$103 -> Financial year ending | J4: =Time!J$103 -> 2013 | K4: =Time!K$103 -> 2014 | L4: =Time!L$103 -> 2015 | M4: =Time!M$103 -> 2016 | N4: =Time!N$103 -> 2017 | O4: =Time!O$103 -> 2018 | P4: =Time!P$103 -> 2019 | Q4: =Time!Q$103 -> 2020 | R4: =Time!R$103 -> 2021 | S4: =Time!S$103 -> 2022 | T4: =Time!T$103 -> 2023 | U4: =Time!U$103 -> 2024 | V4: =Time!V$103 -> 2025
E5: =Time!E$10 -> Model column counter | F5: Constant | G5: Unit | H5: Total | J5: =Time!J$10 -> 1 | K5: =Time!K$10 -> 2 | L5: =Time!L$10 -> 3 | M5: =Time!M$10 -> 4 | N5: =Time!N$10 -> 5 | O5: =Time!O$10 -> 6 | P5: =Time!P$10 -> 7 | Q5: =Time!Q$10 -> 8 | R5: =Time!R$10 -> 9 | S5: =Time!S$10 -> 10 | T5: =Time!T$10 -> 11 | U5: =Time!U$10 -> 12 | V5: =Time!V$10 -> 13
A7: WATER SERVICES INPUTS INFLATION
E9: =Inputs!E$85 -> Water trading - water services | F9: =Inputs!F$85 -> 0 | G9: =Inputs!G$85 -> £m
E10: =Indexation!E$89 -> RPI inflate from 2018 FYA to 2020 FYE | F10: =Indexation!F$89 -> 1.010285428 | G10: =Indexation!G$89 -> factor
E11: Water trading at 2020 FYE price base | F11: =F9 * F10 -> 0 | G11: £m
B13: Water network +
E14: =Inputs!E$91 -> Water trading - Water network | F14: =Inputs!F$91 -> 0 | G14: =Inputs!G$91 -> £m
E15: =Inputs!E$92 -> WRFIM - Water network | F15: =Inputs!F$92 -> 0 | G15: =Inputs!G$92 -> £m
E17: =Indexation!E$89 -> RPI inflate from 2018 FYA to 2020 FYE | F17: =Indexation!F$89 -> 1.010285428 | G17: =Indexation!G$89 -> factor
E18: =Indexation!E$102 -> RPI inflate from November 2019 FYE to 2020 FYE | F18: =Indexation!F$102 -> 1.014312618 | G18: =Indexation!G$102 -> factor
E20: Water trading - Water network at 2020 FYE price base | F20: =F14 * F17 -> 0 | G20: £m
E21: WRFIM - Water network at 2020 FYE price base | F21: =F15 * F18 -> 0 | G21: £m
E23: =Inputs!E$88 -> Final 2010-15 reconciliation - PR09 Legacy blind year adjustments - Water network | F23: =Inputs!F$88 -> 0 | G23: =Inputs!G$88 -> £m
E24: =Inputs!E$89 -> ODI - Water network | F24: =Inputs!F$89 -> 0 | G24: =Inputs!G$89 -> £m
E25: =Inputs!E$90 -> Totex - Water network | F25: =Inputs!F$90 -> 0 | G25: =Inputs!G$90 -> £m
E27: =Indexation!E$82 -> RPI inflate from 2013 FYA to 2020 FYE | F27: =Indexation!F$82 -> 1.100643711 | G27: =Indexation!G$82 -> factor
E29: =E23 & " at 2020 FYE price base" -> Final 2010-15 reconciliation - PR09 Legacy blind year adjustments - Water network at 2020 FYE price base | F29: =F23 * F$27 -> 0 | G29: £m
E30: =E24 & " at 2020 FYE price base" -> ODI - Water network at 2020 FYE price base | F30: =F24 * F$27 -> 0 | G30: £m
E31: =E25 & " at 2020 FYE price base" -> Totex - Water network at 2020 FYE price base | F31: =F25 * F$27 -> 0 | G31: £m
B33: Water resources
E34: =E$11 -> Water trading at 2020 FYE price base | F34: =F$11 -> 0 | G34: £m
D35: less | E35: =E$20 -> Water trading - Water network at 2020 FYE price base | F35: =F$20 -> 0 | G35: £m
E36: Water trading - Water resources at 2020 FYE price base | F36: =F34 - F35 -> 0 | G36: £m
A39: WASTEWATER NETWORK + INPUTS INFLATION
E41: =Inputs!E$96 -> Final 2010-15 reconciliation - PR09 Legacy blind year adjustments - Wastewater network | F41: =Inputs!F$96 -> 0 | G41: =Inputs!G$96 -> £m
E42: =Inputs!E$97 -> ODI - Wastewater network | F42: =Inputs!F$97 -> 0 | G42: =Inputs!G$97 -> £m
E43: =Inputs!E$98 -> Totex - Wastewater network | F43: =Inputs!F$98 -> 0 | G43: =Inputs!G$98 -> £m
E45: =Indexation!E$82 -> RPI inflate from 2013 FYA to 2020 FYE | F45: =Indexation!F$82 -> 1.100643711 | G45: =Indexation!G$82 -> factor
E47: =E41 & " at 2020 FYE price base" -> Final 2010-15 reconciliation - PR09 Legacy blind year adjustments - Wastewater network at 2020 FYE price base | F47: =F41 * F$45 -> 0 | G47: £m
E48: =E42 & " at 2020 FYE price base" -> ODI - Wastewater network at 2020 FYE price base | F48: =F42 * F$45 -> 0 | G48: £m
E49: =E43 & " at 2020 FYE price base" -> Totex - Wastewater network at 2020 FYE price base | F49: 0 | G49: £m
E51: =Inputs!E$99 -> WRFIM - Wastewater network | F51: =Inputs!F$99 -> 0 | G51: =Inputs!G$99 -> £m
E52: =Indexation!E$102 -> RPI inflate from November 2019 FYE to 2020 FYE | F52: =Indexation!F$102 -> 1.014312618 | G52: =Indexation!G$102 -> factor
E53: WRFIM - Wastewater network at 2020 FYE price base | F53: =F51 * F52 -> 0 | G53: £m
A56: RESIDENTIAL RETAIL INPUTS INFLATION
E58: =Inputs!E$104 -> Residential retail revenue | F58: =Inputs!F$104 -> 0 | G58: =Inputs!G$104 -> £m
E59: =Inputs!E$105 -> Residential retail - SIM | F59: =Inputs!F$105 -> 0 | G59: =Inputs!G$105 -> £m
E61: =Indexation!E$95 -> RPI inflate from 2020 FYE to 2020 FYE | F61: =Indexation!F$95 -> 1 | G61: =Indexation!G$95 -> factor
E62: =Indexation!E$89 -> RPI inflate from 2018 FYA to 2020 FYE | F62: =Indexation!F$89 -> 1.010285428 | G62: =Indexation!G$89 -> factor
E64: =E58 & " at 2020 FYE price base" -> Residential retail revenue at 2020 FYE price base | F64: =F58 * F61 -> 0 | G64: £m
E65: =E59 & " at 2020 FYE price base" -> Residential retail - SIM at 2020 FYE price base | F65: =F59 * F62 -> 0 | G65: £m
A68: PR14 REVENUE RECONCILIATION ADJUSTMENTS EXPRESSED IN 2017/18 FYA CPIH DEFLATED PRICE BASE
E70: =E$11 -> Water trading at 2020 FYE price base | F70: =F$11 -> 0 | G70: £m
E71: =E$20 -> Water trading - Water network at 2020 FYE price base | F71: =F$20 -> 0 | G71: £m
E72: =E$21 -> WRFIM - Water network at 2020 FYE price base | F72: =F$21 -> 0 | G72: £m
E73: =E$29 -> Final 2010-15 reconciliation - PR09 Legacy blind year adjustments - Water network at 2020 FYE price base | F73: =F$29 -> 0 | G73: £m
E74: =E$30 -> ODI - Water network at 2020 FYE price base | F74: =F$30 -> 0 | G74: £m
E75: =E$31 -> Totex - Water network at 2020 FYE price base | F75: =F$31 -> 0 | G75: £m
E76: =E$36 -> Water trading - Water resources at 2020 FYE price base | F76: =F$36 -> 0 | G76: £m
E77: =E$47 -> Final 2010-15 reconciliation - PR09 Legacy blind year adjustments - Wastewater network at 2020 FYE price base | F77: =F$47 -> 0 | G77: £m
E78: =E$48 -> ODI - Wastewater network at 2020 FYE price base | F78: =F$48 -> 0 | G78: £m
E79: =E$49 -> Totex - Wastewater network at 2020 FYE price base | F79: =F$49 -> 0 | G79: £m
E80: =E$53 -> WRFIM - Wastewater network at 2020 FYE price base | F80: 0 | G80: £m
E81: =E$64 -> Residential retail revenue at 2020 FYE price base | F81: =F$64 -> 0 | G81: £m
E82: =E$65 -> Residential retail - SIM at 2020 FYE price base | F82: =F$65 -> 0 | G82: £m
E84: =Indexation!E$111 -> CPIH deflate from 2020 FYE to 2018 FYA | F84: =Indexation!F$111 -> 0.3786978586 | G84: =Indexation!G$111 -> factor
E86: Water trading at 2017/18 FYA CPIH deflated price base | F86: =F70 * F$84 -> 0 | G86: £m
E87: Water trading - Water network at 2017/18 FYA CPIH deflated price base | F87: 0 | G87: £m
E88: WRFIM at 2017/18 FYA CPIH deflated price base | F88: 0 | G88: £m
E89: Final 2010-15 reconciliation - PR09 Legacy blind year adjustments - Water network at 2017/18 FYA CPIH deflated price base | F89: 0 | G89: £m
E90: ODI - Water network at 2017/18 FYA CPIH deflated price base | F90: 0 | G90: £m
E91: Totex - Water network at 2017/18 FYA CPIH deflated price base | F91: 0 | G91: £m
E92: Water trading - Water resources at 2017/18 FYA CPIH deflated price base | F92: 0 | G92: £m
E93: Final 2010-15 reconciliation - PR09 Legacy blind year adjustments - Wastewater network at 2017/18 FYA CPIH deflated price base | F93: 0 | G93: £m
E94: ODI - Wastewater network at 2017/18 FYA CPIH deflated price base | F94: 0 | G94: £m
E95: Totex - Wastewater network at 2017/18 FYA CPIH deflated price base | F95: 0 | G95: £m
E96: WRFIM - Wastewater network at 2017/18 FYA CPIH deflated price base | F96: 0 | G96: £m
E97: Residential retail revenue at 2017/18 FYA CPIH deflated price base | F97: 0 | G97: £m
E98: Residential retail - SIM at 2017/18 FYA CPIH deflated price base | F98: 0 | G98: £m
A101: SUBTOTALS AS PER PRICE CONTROL FOR REVENUE ADJUSTMENTS 2017/18 FYA CPIH DEFLATED
B103: Water resources revenue adjustment
E104: =E$92 -> Water trading - Water resources at 2017/18 FYA CPIH deflated price base | F104: 0 | G104: £m
E105: Water resources revenue adjustment | F105: =SUM(F104) -> 0 | G105: £m
B107: Water network + : revenue adjustment
E108: =E$87 -> Water trading - Water network at 2017/18 FYA CPIH deflated price base | F108: 0 | G108: £m
E109: =E$88 -> WRFIM at 2017/18 FYA CPIH deflated price base | F109: 0 | G109: £m
E110: =E$89 -> Final 2010-15 reconciliation - PR09 Legacy blind year adjustments - Water network at 2017/18 FYA CPIH deflated price base | F110: 0 | G110: £m
E111: =E$90 -> ODI - Water network at 2017/18 FYA CPIH deflated price base | F111: 0 | G111: £m
E112: =E$91 -> Totex - Water network at 2017/18 FYA CPIH deflated price base | F112: 0 | G112: £m
E113: Water network + : revenue adjustment | F113: =SUM(F108:F112) -> 0 | G113: £m
B115: Wastewater network + : revenue adjustment
E116: =E$93 -> Final 2010-15 reconciliation - PR09 Legacy blind year adjustments - Wastewater network at 2017/18 FYA CPIH deflated price base | F116: 0 | G116: £m
E117: =E$94 -> ODI - Wastewater network at 2017/18 FYA CPIH deflated price base | F117: 0 | G117: £m
E118: =E$95 -> Totex - Wastewater network at 2017/18 FYA CPIH deflated price base | F118: 0 | G118: £m
E119: =E$96 -> WRFIM - Wastewater network at 2017/18 FYA CPIH deflated price base | F119: 0 | G119: £m
E120: Wastewater network + : revenue adjustment | F120: =SUM(F116:F119) -> 0 | G120: £m
B122: Residential retail revenue adjustment
E123: =E$97 -> Residential retail revenue at 2017/18 FYA CPIH deflated price base | F123: 0 | G123: £m
E124: =E$98 -> Residential retail - SIM at 2017/18 FYA CPIH deflated price base | F124: 0 | G124: £m
E125: Residential retail revenue adjustment | F125: =SUM(F123:F124) -> 0 | G125: £m

Sheet Profiling
A1: =RIGHT(CELL("filename", $A$1), LEN(CELL("filename", $A$1)) - SEARCH("]", CELL("filename", $A$1))) -> Profiling
E2: =Time!E$25 -> Model period ending | J2: =Time!J$25 -> 2013-03-31 | K2: =Time!K$25 -> 2014-03-31 | L2: =Time!L$25 -> 2015-03-31 | M2: =Time!M$25 -> 2016-03-31 | N2: =Time!N$25 -> 2017-03-31 | O2: =Time!O$25 -> 2018-03-31 | P2: =Time!P$25 -> 2019-03-31 | Q2: =Time!Q$25 -> 2020-03-31 | R2: =Time!R$25 -> 2021-03-31 | S2: =Time!S$25 -> 2022-03-31 | T2: =Time!T$25 -> 2023-03-31 | U2: =Time!U$25 -> 2024-03-31 | V2: =Time!V$25 -> 2025-03-31
E3: =Time!E$80 -> Timeline label | J3: =Time!J$80 -> Pre-Fcst | K3: =Time!K$80 -> Pre-Fcst | L3: =Time!L$80 -> Pre-Fcst | M3: =Time!M$80 -> Pre-Fcst | N3: =Time!N$80 -> Pre-Fcst | O3: =Time!O$80 -> Pre-Fcst | P3: =Time!P$80 -> Pre-Fcst | Q3: =Time!Q$80 -> Pre-Fcst | R3: =Time!R$80 -> Forecast | S3: =Time!S$80 -> Forecast | T3: =Time!T$80 -> Forecast | U3: =Time!U$80 -> Forecast | V3: =Time!V$80 -> Forecast
E4: =Time!E$103 -> Financial year ending | J4: =Time!J$103 -> 2013 | K4: =Time!K$103 -> 2014 | L4: =Time!L$103 -> 2015 | M4: =Time!M$103 -> 2016 | N4: =Time!N$103 -> 2017 | O4: =Time!O$103 -> 2018 | P4: =Time!P$103 -> 2019 | Q4: =Time!Q$103 -> 2020 | R4: =Time!R$103 -> 2021 | S4: =Time!S$103 -> 2022 | T4: =Time!T$103 -> 2023 | U4: =Time!U$103 -> 2024 | V4: =Time!V$103 -> 2025
E5: =Time!E$10 -> Model column counter | F5: Constant | G5: Unit | H5: Total | J5: =Time!J$10 -> 1 | K5: =Time!K$10 -> 2 | L5: =Time!L$10 -> 3 | M5: =Time!M$10 -> 4 | N5: =Time!N$10 -> 5 | O5: =Time!O$10 -> 6 | P5: =Time!P$10 -> 7 | Q5: =Time!Q$10 -> 8 | R5: =Time!R$10 -> 9 | S5: =Time!S$10 -> 10 | T5: =Time!T$10 -> 11 | U5: =Time!U$10 -> 12 | V5: =Time!V$10 -> 13
A7: DISCOUNT RATE FOR 2021-25
E9: =Inputs!E$113 -> PV base date | F9: =Inputs!F$113 -> 2021-03-31 | G9: =Inputs!G$113 -> date
E10: =Inputs!E$136 -> Days in a year | F10: =Inputs!F$136 -> 365 | G10: =Inputs!G$136 -> days
E11: =Time!E$25 -> Model period ending | F11: =Time!F$25 -> 00:00:00 | G11: =Time!G$25 -> date | H11: =Time!H$25 -> 00:00:00 | I11: =Time!I$25 -> 00:00:00 | J11: =Time!J$25 -> 2013-03-31 | K11: =Time!K$25 -> 2014-03-31 | L11: =Time!L$25 -> 2015-03-31 | M11: =Time!M$25 -> 2016-03-31 | N11: =Time!N$25 -> 2017-03-31 | O11: =Time!O$25 -> 2018-03-31 | P11: =Time!P$25 -> 2019-03-31 | Q11: =Time!Q$25 -> 2020-03-31 | R11: =Time!R$25 -> 2021-03-31 | S11: =Time!S$25 -> 2022-03-31 | T11: =Time!T$25 -> 2023-03-31 | U11: =Time!U$25 -> 2024-03-31 | V11: =Time!V$25 -> 2025-03-31
E12: =Time!E$49 -> Forecast period flag | F12: =Time!F$49 -> 0 | G12: =Time!G$49 -> flag | H12: =Time!H$49 -> 5 | I12: =Time!I$49 -> 0 | J12: =Time!J$49 -> 0 | K12: =Time!K$49 -> 0 | L12: =Time!L$49 -> 0 | M12: =Time!M$49 -> 0 | N12: =Time!N$49 -> 0 | O12: =Time!O$49 -> 0 | P12: =Time!P$49 -> 0 | Q12: =Time!Q$49 -> 0 | R12: =Time!R$49 -> 1 | S12: =Time!S$49 -> 1 | T12: =Time!T$49 -> 1 | U12: =Time!U$49 -> 1 | V12: =Time!V$49 -> 1
E13: Years from valuation date | G13: years | J13: =IF(J11 < $F9, 0, (J11 - $F9) / $F10) * J12 -> 0 | K13: 0 | L13: 0 | M13: 0 | N13: 0 | O13: 0 | P13: 0 | Q13: =IF(Q11 < $F9, 0, (Q11 - $F9) / $F10) * Q12 -> 0 | R13: 0 | S13: 1 | T13: 2 | U13: 3.002739726 | V13: 4.002739726
E15: =Inputs!E$115 -> Discount rate - Water resources | F15: =Inputs!F$115 -> 0 | G15: =Inputs!G$115 -> %
E16: =Inputs!E$116 -> Discount rate - Water network | F16: =Inputs!F$116 -> 0 | G16: =Inputs!G$116 -> %
E17: =Inputs!E$117 -> Discount rate - Wastewater network | F17: =Inputs!F$117 -> 0 | G17: =Inputs!G$117 -> %
E18: =Inputs!E$118 -> Discount rate - Residential retail | F18: =Inputs!F$118 -> 0 | G18: =Inputs!G$118 -> %
E20: =Inputs!E$113 -> PV base date | F20: =Inputs!F$113 -> 2021-03-31 | G20: =Inputs!G$113 -> date
E22: =Time!E$25 -> Model period ending | F22: =Time!F$25 -> 00:00:00 | G22: =Time!G$25 -> date | H22: =Time!H$25 -> 00:00:00 | I22: =Time!I$25 -> 00:00:00 | J22: =Time!J$25 -> 2013-03-31 | K22: =Time!K$25 -> 2014-03-31 | L22: =Time!L$25 -> 2015-03-31 | M22: =Time!M$25 -> 2016-03-31 | N22: =Time!N$25 -> 2017-03-31 | O22: =Time!O$25 -> 2018-03-31 | P22: =Time!P$25 -> 2019-03-31 | Q22: =Time!Q$25 -> 2020-03-31 | R22: =Time!R$25 -> 2021-03-31 | S22: =Time!S$25 -> 2022-03-31 | T22: =Time!T$25 -> 2023-03-31 | U22: =Time!U$25 -> 2024-03-31 | V22: =Time!V$25 -> 2025-03-31
E23: =E$13 -> Years from valuation date | F23: 0 | G23: years | H23: 0 | I23: 0 | J23: 0 | K23: 0 | L23: 0 | M23: 0 | N23: 0 | O23: 0 | P23: 0 | Q23: 0 | R23: 0 | S23: 1 | T23: 2 | U23: 3.002739726 | V23: 4.002739726
E25: PV discount factor - Water resources | G25: factor | H25: =SUM(J25:V25) -> 5 | J25: =IF(J$22 < $F$20, 0, 1 / ( 1 + $F15) ^ J$23) -> 0 | K25: =IF(K$22 < $F$20, 0, 1 / ( 1 + $F15) ^ K$23) -> 0 | L25: 0 | M25: 0 | N25: 0 | O25: 0 | P25: 0 | Q25: 0 | R25: 1 | S25: 1 | T25: 1 | U25: 1 | V25: 1
E26: PV discount factor - Water network | G26: factor | H26: =SUM(J26:V26) -> 5 | J26: =IF(J$22 < $F$20, 0, 1 / ( 1 + $F16) ^ J$23) -> 0 | K26: 0 | L26: 0 | M26: 0 | N26: 0 | O26: 0 | P26: 0 | Q26: 0 | R26: 1 | S26: 1 | T26: 1 | U26: 1 | V26: 1
E27: PV discount factor - Wastewater network | G27: factor | H27: 5 | J27: =IF(J$22 < $F$20, 0, 1 / ( 1 + $F17) ^ J$23) -> 0 | K27: 0 | L27: 0 | M27: 0 | N27: 0 | O27: 0 | P27: 0 | Q27: 0 | R27: 1 | S27: 1 | T27: 1 | U27: 1 | V27: 1
E28: PV discount factor - Residential revenue | G28: factor | H28: 5 | J28: =IF(J$22 < $F$20, 0, 1 / ( 1 + $F18) ^ J$23) -> 0 | K28: 0 | L28: 0 | M28: 0 | N28: 0 | O28: 0 | P28: 0 | Q28: 0 | R28: 1 | S28: 1 | T28: 1 | U28: 1 | V28: 1
E30: =E$25 -> PV discount factor - Water resources | F30: 0 | G30: factor | H30: 5 | I30: 0 | J30: 0 | K30: 0 | L30: 0 | M30: 0 | N30: 0 | O30: 0 | P30: 0 | Q30: 0 | R30: 1 | S30: 1 | T30: 1 | U30: 1 | V30: 1
E31: =E$26 -> PV discount factor - Water network | F31: 0 | G31: factor | H31: 5 | I31: 0 | J31: 0 | K31: 0 | L31: 0 | M31: 0 | N31: 0 | O31: 0 | P31: 0 | Q31: 0 | R31: 1 | S31: 1 | T31: 1 | U31: 1 | V31: 1
E32: =E$27 -> PV discount factor - Wastewater network | F32: 0 | G32: factor | H32: 5 | I32: 0 | J32: 0 | K32: 0 | L32: 0 | M32: 0 | N32: 0 | O32: 0 | P32: 0 | Q32: 0 | R32: 1 | S32: 1 | T32: 1 | U32: 1 | V32: 1
E33: =E$28 -> PV discount factor - Residential revenue | F33: 0 | G33: factor | H33: 5 | I33: 0 | J33: 0 | K33: 0 | L33: 0 | M33: 0 | N33: 0 | O33: 0 | P33: 0 | Q33: 0 | R33: 1 | S33: 1 | T33: 1 | U33: 1 | V33: 1
E35: Equivalent Annual Cost (EAC) factor - Water resources | F35: =SUM(J30:V30) -> 5 | G35: factor
E36: Equivalent Annual Cost (EAC) factor - Water network | F36: =SUM(J31:V31) -> 5 | G36: factor
E37: Equivalent Annual Cost (EAC) factor - Wastewater network | F37: 5 | G37: factor
E38: Equivalent Annual Cost (EAC) factor - Residential revenue | F38: 5 | G38: factor
A41: PROFILES
B43: Profile 0 - Apply in first year
E44: =Inputs!E$113 -> PV base date | F44: =Inputs!F$113 -> 2021-03-31 | G44: =Inputs!G$113 -> date
E46: =Time!E$25 -> Model period ending | F46: =Time!F$25 -> 00:00:00 | G46: =Time!G$25 -> date | H46: =Time!H$25 -> 00:00:00 | I46: =Time!I$25 -> 00:00:00 | J46: =Time!J$25 -> 2013-03-31 | K46: =Time!K$25 -> 2014-03-31 | L46: =Time!L$25 -> 2015-03-31 | M46: =Time!M$25 -> 2016-03-31 | N46: =Time!N$25 -> 2017-03-31 | O46: =Time!O$25 -> 2018-03-31 | P46: =Time!P$25 -> 2019-03-31 | Q46: =Time!Q$25 -> 2020-03-31 | R46: =Time!R$25 -> 2021-03-31 | S46: =Time!S$25 -> 2022-03-31 | T46: =Time!T$25 -> 2023-03-31 | U46: =Time!U$25 -> 2024-03-31 | V46: =Time!V$25 -> 2025-03-31
E48: =E$25 -> PV discount factor - Water resources | F48: 0 | G48: factor | H48: 5 | I48: 0 | J48: 0 | K48: 0 | L48: 0 | M48: 0 | N48: 0 | O48: 0 | P48: 0 | Q48: 0 | R48: 1 | S48: 1 | T48: 1 | U48: 1 | V48: 1
E49: =E$26 -> PV discount factor - Water network | F49: 0 | G49: factor | H49: 5 | I49: 0 | J49: 0 | K49: 0 | L49: 0 | M49: 0 | N49: 0 | O49: 0 | P49: 0 | Q49: 0 | R49: 1 | S49: 1 | T49: 1 | U49: 1 | V49: 1
E50: =E$27 -> PV discount factor - Wastewater network | F50: 0 | G50: factor | H50: 5 | I50: 0 | J50: 0 | K50: 0 | L50: 0 | M50: 0 | N50: 0 | O50: 0 | P50: 0 | Q50: 0 | R50: 1 | S50: 1 | T50: 1 | U50: 1 | V50: 1
E51: =E$28 -> PV discount factor - Residential revenue | F51: 0 | G51: factor | H51: 5 | I51: 0 | J51: 0 | K51: 0 | L51: 0 | M51: 0 | N51: 0 | O51: 0 | P51: 0 | Q51: 0 | R51: 1 | S51: 1 | T51: 1 | U51: 1 | V51: 1
E53: PV discount factor at base date - Water resources | G53: factor | J53: =IF($F$44 = J$46, J48, 0) -> 0 | K53: 0 | L53: 0 | M53: 0 | N53: 0 | O53: 0 | P53: 0 | Q53: 0 | R53: 1 | S53: 0 | T53: 0 | U53: 0 | V53: 0
E54: PV discount factor at base date - Water network | G54: factor | J54: =IF($F$44 = J$46, J49, 0) -> 0 | K54: 0 | L54: 0 | M54: 0 | N54: 0 | O54: 0 | P54: 0 | Q54: 0 | R54: 1 | S54: 0 | T54: 0 | U54: 0 | V54: 0
E55: PV discount factor at base date - Wastewater network | G55: factor | J55: =IF($F$44 = J$46, J50, 0) -> 0 | K55: 0 | L55: 0 | M55: 0 | N55: 0 | O55: 0 | P55: 0 | Q55: 0 | R55: 1 | S55: 0 | T55: 0 | U55: 0 | V55: 0
E56: PV discount factor at base date - Residential retail | G56: factor | J56: =IF($F$44 = J$46, J51, 0) -> 0 | K56: 0 | L56: 0 | M56: 0 | N56: 0 | O56: 0 | P56: 0 | Q56: 0 | R56: 1 | S56: 0 | T56: 0 | U56: 0 | V56: 0
E58: =Calc!E$105 -> Water resources revenue adjustment | F58: =Calc!F$105 -> 0 | G58: =Calc!G$105 -> £m
E59: =Calc!E$113 -> Water network + : revenue adjustment | F59: =Calc!F$113 -> 0 | G59: =Calc!G$113 -> £m
E60: =Calc!E$120 -> Wastewater network + : revenue adjustment | F60: =Calc!F$120 -> 0 | G60: =Calc!G$120 -> £m
E61: =Calc!E$125 -> Residential retail revenue adjustment | F61: =Calc!F$125 -> 0 | G61: =Calc!G$125 -> £m
E63: =E$53 -> PV discount factor at base date - Water resources | F63: 0 | G63: =G$53 -> factor | H63: 0 | I63: 0 | J63: 0 | K63: 0 | L63: 0 | M63: 0 | N63: 0 | O63: 0 | P63: 0 | Q63: 0 | R63: 1 | S63: 0 | T63: 0 | U63: 0 | V63: 0
E64: =E$54 -> PV discount factor at base date - Water network | F64: 0 | G64: factor | H64: 0 | I64: 0 | J64: 0 | K64: 0 | L64: 0 | M64: 0 | N64: 0 | O64: 0 | P64: 0 | Q64: 0 | R64: 1 | S64: 0 | T64: 0 | U64: 0 | V64: 0
E65: =E$55 -> PV discount factor at base date - Wastewater network | F65: 0 | G65: factor | H65: 0 | I65: 0 | J65: 0 | K65: 0 | L65: 0 | M65: 0 | N65: 0 | O65: 0 | P65: 0 | Q65: 0 | R65: 1 | S65: 0 | T65: 0 | U65: 0 | V65: 0
E66: =E$56 -> PV discount factor at base date - Residential retail | F66: 0 | G66: factor | H66: 0 | I66: 0 | J66: 0 | K66: 0 | L66: 0 | M66: 0 | N66: 0 | O66: 0 | P66: 0 | Q66: 0 | R66: 1 | S66: 0 | T66: 0 | U66: 0 | V66: 0
E68: Water resources revenue adjustment applied in first year | G68: £m | H68: =SUM(J68:V68) -> 0 | J68: =$F58 * J63 -> 0 | K68: =$F58 * K63 -> 0 | L68: 0 | M68: 0 | N68: 0 | O68: 0 | P68: 0 | Q68: 0 | R68: 0 | S68: 0 | T68: 0 | U68: 0 | V68: 0
E69: Water network revenue adjustment applied in first year | G69: £m | H69: 0 | J69: =$F59 * J64 -> 0 | K69: 0 | L69: 0 | M69: 0 | N69: 0 | O69: 0 | P69: 0 | Q69: 0 | R69: 0 | S69: 0 | T69: 0 | U69: 0 | V69: 0
E70: Wastewater network revenue adjustment applied in first year | G70: £m | H70: 0 | J70: =$F60 * J65 -> 0 | K70: 0 | L70: 0 | M70: 0 | N70: 0 | O70: 0 | P70: 0 | Q70: 0 | R70: 0 | S70: 0 | T70: 0 | U70: 0 | V70: 0
E71: Residential retail revenue adjustment applied in first year | G71: £m | H71: 0 | J71: =$F61 * J66 -> 0 | K71: 0 | L71: 0 | M71: 0 | N71: 0 | O71: 0 | P71: 0 | Q71: 0 | R71: 0 | S71: 0 | T71: 0 | U71: 0 | V71: 0
B73: Profile 1 - Constant annuity 2020-25
E74: =Calc!E$105 -> Water resources revenue adjustment | F74: =Calc!F$105 -> 0 | G74: =Calc!G$105 -> £m
E75: =Calc!E$113 -> Water network + : revenue adjustment | F75: =Calc!F$113 -> 0 | G75: =Calc!G$113 -> £m
E76: =Calc!E$120 -> Wastewater network + : revenue adjustment | F76: =Calc!F$120 -> 0 | G76: =Calc!G$120 -> £m
E77: =Calc!E$125 -> Residential retail revenue adjustment | F77: =Calc!F$125 -> 0 | G77: =Calc!G$125 -> £m
E79: =E$35 -> Equivalent Annual Cost (EAC) factor - Water resources | F79: 5 | G79: factor
E80: =E$36 -> Equivalent Annual Cost (EAC) factor - Water network | F80: 5 | G80: factor
E81: =E$37 -> Equivalent Annual Cost (EAC) factor - Wastewater network | F81: 5 | G81: factor
E82: =E$38 -> Equivalent Annual Cost (EAC) factor - Residential revenue | F82: 5 | G82: factor
E84: =Time!E$49 -> Forecast period flag | F84: =Time!F$49 -> 0 | G84: =Time!G$49 -> flag | H84: =Time!H$49 -> 5 | I84: =Time!I$49 -> 0 | J84: =Time!J$49 -> 0 | K84: =Time!K$49 -> 0 | L84: =Time!L$49 -> 0 | M84: =Time!M$49 -> 0 | N84: =Time!N$49 -> 0 | O84: =Time!O$49 -> 0 | P84: =Time!P$49 -> 0 | Q84: =Time!Q$49 -> 0 | R84: =Time!R$49 -> 1 | S84: =Time!S$49 -> 1 | T84: =Time!T$49 -> 1 | U84: =Time!U$49 -> 1 | V84: =Time!V$49 -> 1
E86: Water resources revenue adjustment - EAC factor adjusted | G86: £m | H86: =SUM(J86:V86) -> 0 | J86: =($F74 / $F79) * J$84 -> 0 | K86: =($F74 / $F79) * K$84 -> 0 | L86: 0 | M86: 0 | N86: 0 | O86: 0 | P86: 0 | Q86: 0 | R86: 0 | S86: 0 | T86: 0 | U86: 0 | V86: 0
E87: Water network revenue adjustment - EAC factor adjusted | G87: £m | H87: =SUM(J87:V87) -> 0 | J87: =($F75 / $F80) * J$84 -> 0 | K87: 0 | L87: 0 | M87: 0 | N87: 0 | O87: 0 | P87: 0 | Q87: 0 | R87: 0 | S87: 0 | T87: 0 | U87: 0 | V87: 0
E88: Wastewater network revenue adjustment - EAC factor adjusted | G88: £m | H88: =SUM(J88:V88) -> 0 | J88: =($F76 / $F81) * J$84 -> 0 | K88: 0 | L88: 0 | M88: 0 | N88: 0 | O88: 0 | P88: 0 | Q88: 0 | R88: 0 | S88: 0 | T88: 0 | U88: 0 | V88: 0
E89: Residential retail revenue adjustment - EAC factor adjusted | G89: £m | H89: =SUM(J89:V89) -> 0 | J89: =($F77 / $F82) * J$84 -> 0 | K89: 0 | L89: 0 | M89: 0 | N89: 0 | O89: 0 | P89: 0 | Q89: 0 | R89: 0 | S89: 0 | T89: 0 | U89: 0 | V89: 0
E91: =E$86 -> Water resources revenue adjustment - EAC factor adjusted | F91: 0 | G91: =G$86 -> £m | H91: =H$86 -> 0 | I91: =I$86 -> 0 | J91: =J$86 -> 0 | K91: =K$86 -> 0 | L91: =L$86 -> 0 | M91: =M$86 -> 0 | N91: =N$86 -> 0 | O91: =O$86 -> 0 | P91: =P$86 -> 0 | Q91: =Q$86 -> 0 | R91: =R$86 -> 0 | S91: =S$86 -> 0 | T91: =T$86 -> 0 | U91: =U$86 -> 0 | V91: =V$86 -> 0
E92: =E$87 -> Water network revenue adjustment - EAC factor adjusted | F92: 0 | G92: =G$87 -> £m | H92: =H$87 -> 0 | I92: =I$87 -> 0 | J92: =J$87 -> 0 | K92: =K$87 -> 0 | L92: =L$87 -> 0 | M92: =M$87 -> 0 | N92: =N$87 -> 0 | O92: =O$87 -> 0 | P92: =P$87 -> 0 | Q92: =Q$87 -> 0 | R92: =R$87 -> 0 | S92: =S$87 -> 0 | T92: =T$87 -> 0 | U92: =U$87 -> 0 | V92: =V$87 -> 0
E93: =E$88 -> Wastewater network revenue adjustment - EAC factor adjusted | F93: 0 | G93: =G$88 -> £m | H93: =H$88 -> 0 | I93: =I$88 -> 0 | J93: =J$88 -> 0 | K93: =K$88 -> 0 | L93: =L$88 -> 0 | M93: =M$88 -> 0 | N93: =N$88 -> 0 | O93: =O$88 -> 0 | P93: =P$88 -> 0 | Q93: =Q$88 -> 0 | R93: =R$88 -> 0 | S93: =S$88 -> 0 | T93: =T$88 -> 0 | U93: =U$88 -> 0 | V93: =V$88 -> 0
E94: =E$89 -> Residential retail revenue adjustment - EAC factor adjusted | F94: 0 | G94: =G$89 -> £m | H94: =H$89 -> 0 | I94: =I$89 -> 0 | J94: =J$89 -> 0 | K94: =K$89 -> 0 | L94: =L$89 -> 0 | M94: =M$89 -> 0 | N94: =N$89 -> 0 | O94: =O$89 -> 0 | P94: =P$89 -> 0 | Q94: =Q$89 -> 0 | R94: =R$89 -> 0 | S94: =S$89 -> 0 | T94: =T$89 -> 0 | U94: =U$89 -> 0 | V94: =V$89 -> 0
E96: =E$25 -> PV discount factor - Water resources | F96: 0 | G96: factor | H96: 5 | I96: 0 | J96: 0 | K96: 0 | L96: 0 | M96: 0 | N96: 0 | O96: 0 | P96: 0 | Q96: 0 | R96: 1 | S96: 1 | T96: 1 | U96: 1 | V96: 1
E97: =E$26 -> PV discount factor - Water network | F97: 0 | G97: factor | H97: 5 | I97: 0 | J97: 0 | K97: 0 | L97: 0 | M97: 0 | N97: 0 | O97: 0 | P97: 0 | Q97: 0 | R97: 1 | S97: 1 | T97: 1 | U97: 1 | V97: 1
E98: =E$27 -> PV discount factor - Wastewater network | F98: 0 | G98: factor | H98: 5 | I98: 0 | J98: 0 | K98: 0 | L98: 0 | M98: 0 | N98: 0 | O98: 0 | P98: 0 | Q98: 0 | R98: 1 | S98: 1 | T98: 1 | U98: 1 | V98: 1
E99: =E$28 -> PV discount factor - Residential revenue | F99: 0 | G99: factor | H99: 5 | I99: 0 | J99: 0 | K99: 0 | L99: 0 | M99: 0 | N99: 0 | O99: 0 | P99: 0 | Q99: 0 | R99: 1 | S99: 1 | T99: 1 | U99: 1 | V99: 1
E101: Water resources revenue adjustment - Constant annuity 2015-20 | G101: £m | H101: =SUM(J101:V101) -> 0 | J101: =J91 * J96 -> 0 | K101: =K91 * K96 -> 0 | L101: 0 | M101: 0 | N101: 0 | O101: 0 | P101: 0 | Q101: 0 | R101: 0 | S101: 0 | T101: 0 | U101: 0 | V101: 0
E102: Water network revenue adjustment - Constant annuity 2015-20 | G102: £m | H102: 0 | J102: =J92 * J97 -> 0 | K102: 0 | L102: 0 | M102: 0 | N102: 0 | O102: 0 | P102: 0 | Q102: 0 | R102: 0 | S102: 0 | T102: 0 | U102: 0 | V102: 0
E103: Wastewater network revenue adjustment - Constant annuity 2015-20 | G103: £m | H103: 0 | J103: =J93 * J98 -> 0 | K103: 0 | L103: 0 | M103: 0 | N103: 0 | O103: 0 | P103: 0 | Q103: 0 | R103: 0 | S103: 0 | T103: 0 | U103: 0 | V103: 0
E104: Residential retail revenue adjustment - Constant annuity 2015-20 | G104: £m | H104: 0 | J104: =J94 * J99 -> 0 | K104: 0 | L104: 0 | M104: 0 | N104: 0 | O104: 0 | P104: 0 | Q104: 0 | R104: 0 | S104: 0 | T104: 0 | U104: 0 | V104: 0
B106: Profile 2 - Even allocation - NPV neutral
E107: =Calc!E$105 -> Water resources revenue adjustment | F107: =Calc!F$105 -> 0 | G107: =Calc!G$105 -> £m
E108: =Calc!E$113 -> Water network + : revenue adjustment | F108: =Calc!F$113 -> 0 | G108: =Calc!G$113 -> £m
E109: =Calc!E$120 -> Wastewater network + : revenue adjustment | F109: =Calc!F$120 -> 0 | G109: =Calc!G$120 -> £m
E110: =Calc!E$125 -> Residential retail revenue adjustment | F110: =Calc!F$125 -> 0 | G110: =Calc!G$125 -> £m
E112: =Inputs!E$115 -> Discount rate - Water resources | F112: =Inputs!F$115 -> 0 | G112: =Inputs!G$115 -> %
E113: =Inputs!E$116 -> Discount rate - Water network | F113: =Inputs!F$116 -> 0 | G113: =Inputs!G$116 -> %
E114: =Inputs!E$117 -> Discount rate - Wastewater network | F114: =Inputs!F$117 -> 0 | G114: =Inputs!G$117 -> %
E115: =Inputs!E$118 -> Discount rate - Residential retail | F115: =Inputs!F$118 -> 0 | G115: =Inputs!G$118 -> %
E117: =Inputs!E$120 -> Number of years to profile over | F117: =Inputs!F$120 -> 0 | G117: =Inputs!G$120 -> #
E119: =E$13 -> Years from valuation date | F119: 0 | G119: =G$13 -> years | H119: 0 | I119: 0 | J119: 0 | K119: 0 | L119: 0 | M119: 0 | N119: 0 | O119: 0 | P119: 0 | Q119: 0 | R119: 0 | S119: 1 | T119: 2 | U119: 3.002739726 | V119: 4.002739726
E120: =Time!E$49 -> Forecast period flag | F120: =Time!F$49 -> 0 | G120: =Time!G$49 -> flag | H120: =Time!H$49 -> 5 | I120: =Time!I$49 -> 0 | J120: =Time!J$49 -> 0 | K120: =Time!K$49 -> 0 | L120: =Time!L$49 -> 0 | M120: =Time!M$49 -> 0 | N120: =Time!N$49 -> 0 | O120: =Time!O$49 -> 0 | P120: =Time!P$49 -> 0 | Q120: =Time!Q$49 -> 0 | R120: =Time!R$49 -> 1 | S120: =Time!S$49 -> 1 | T120: =Time!T$49 -> 1 | U120: =Time!U$49 -> 1 | V120: =Time!V$49 -> 1
E122: Water resources revenue adjustment - NPV adjusted | G122: £m | H122: =SUM(J122:V122) ->  | J122: =IF(J$119 + 1 <= $F$117 + 1, $F107 / $F$117, 0) * J$120 * (1 + $F112) ^ J$119 ->  | K122: =IF(K$119 + 1 <= $F$117 + 1, $F107 / $F$117, 0) * K$120 * (1 + $F112) ^ K$119 ->  | S122: 0 | T122: 0 | U122: 0 | V122: 0
E123: Water network revenue adjustment - NPV adjusted | G123: £m | J123: =IF(J$119 + 1 <= $F$117 + 1, $F108 / $F$117, 0) * J$120 * (1 + $F113) ^ J$119 ->  | S123: 0 | T123: 0 | U123: 0 | V123: 0
E124: Wastewater network revenue adjustment - NPV adjusted | G124: £m | J124: =IF(J$119 + 1 <= $F$117 + 1, $F109 / $F$117, 0) * J$120 * (1 + $F114) ^ J$119 ->  | S124: 0 | T124: 0 | U124: 0 | V124: 0
E125: Residential retail revenue adjustment - NPV adjusted | G125: £m | J125: =IF(J$119 + 1 <= $F$117 + 1, $F110 / $F$117, 0) * J$120 * (1 + $F115) ^ J$119 ->  | S125: 0 | T125: 0 | U125: 0 | V125: 0
E127: =E$122 -> Water resources revenue adjustment - NPV adjusted | F127: 0 | G127: =G$122 -> £m | I127: 0 | S127: 0 | T127: 0 | U127: 0 | V127: 0
E128: =E$123 -> Water network revenue adjustment - NPV adjusted | F128: 0 | G128: =G$123 -> £m | I128: 0 | S128: 0 | T128: 0 | U128: 0 | V128: 0
E129: =E$124 -> Wastewater network revenue adjustment - NPV adjusted | F129: 0 | G129: =G$124 -> £m | I129: 0 | S129: 0 | T129: 0 | U129: 0 | V129: 0
E130: =E$125 -> Residential retail revenue adjustment - NPV adjusted | F130: 0 | G130: =G$125 -> £m | I130: 0 | S130: 0 | T130: 0 | U130: 0 | V130: 0
E132: =E$25 -> PV discount factor - Water resources | F132: 0 | G132: factor | H132: 5 | I132: 0 | J132: 0 | K132: 0 | L132: 0 | M132: 0 | N132: 0 | O132: 0 | P132: 0 | Q132: 0 | R132: 1 | S132: 1 | T132: 1 | U132: 1 | V132: 1
E133: =E$26 -> PV discount factor - Water network | F133: 0 | G133: factor | H133: 5 | I133: 0 | J133: 0 | K133: 0 | L133: 0 | M133: 0 | N133: 0 | O133: 0 | P133: 0 | Q133: 0 | R133: 1 | S133: 1 | T133: 1 | U133: 1 | V133: 1
E134: =E$27 -> PV discount factor - Wastewater network | F134: 0 | G134: factor | H134: 5 | I134: 0 | J134: 0 | K134: 0 | L134: 0 | M134: 0 | N134: 0 | O134: 0 | P134: 0 | Q134: 0 | R134: 1 | S134: 1 | T134: 1 | U134: 1 | V134: 1
E135: =E$28 -> PV discount factor - Residential revenue | F135: 0 | G135: factor | H135: 5 | I135: 0 | J135: 0 | K135: 0 | L135: 0 | M135: 0 | N135: 0 | O135: 0 | P135: 0 | Q135: 0 | R135: 1 | S135: 1 | T135: 1 | U135: 1 | V135: 1
E137: Water resources revenue adjustment - Even allocation - NPV neutral | G137: £m | H137: =SUM(J137:V137) ->  | J137: =J127 * J132 ->  | K137: =K127 * K132 ->  | S137: 0 | T137: 0 | U137: 0 | V137: 0
E138: Water network revenue adjustment - Even allocation - NPV neutral | G138: £m | J138: =J128 * J133 ->  | S138: 0 | T138: 0 | U138: 0 | V138: 0
E139: Wastewater network revenue adjustment - Even allocation - NPV neutral | G139: £m | J139: =J129 * J134 ->  | S139: 0 | T139: 0 | U139: 0 | V139: 0
E140: Residential retail revenue adjustment - Even allocation - NPV neutral | G140: £m | J140: =J130 * J135 ->  | S140: 0 | T140: 0 | U140: 0 | V140: 0
A143: PROFILES SELECTION
E145: =Inputs!E$124 -> Water resources revenue adjustment selector | F145: =Inputs!F$124 -> 2 | G145: =Inputs!G$124 -> 0 = Apply in first year, 1 = Constant annuity 2020-25, 2 = Even allocation - NPV neutral
E146: =Inputs!E$125 -> Water network revenue adjustment selector | F146: =Inputs!F$125 -> 2 | G146: =Inputs!G$125 -> 0 = Apply in first year, 1 = Constant annuity 2020-25, 2 = Even allocation - NPV neutral
E147: =Inputs!E$126 -> Wastewater network revenue adjustment selector | F147: =Inputs!F$126 -> 2 | G147: =Inputs!G$126 -> 0 = Apply in first year, 1 = Constant annuity 2020-25, 2 = Even allocation - NPV neutral
E148: =Inputs!E$127 -> Residential retail revenue adjustment selector | F148: =Inputs!F$127 -> 2 | G148: =Inputs!G$127 -> 0 = Apply in first year, 1 = Constant annuity 2020-25, 2 = Even allocation - NPV neutral
E150: =E$68 -> Water resources revenue adjustment applied in first year | F150: 0 | G150: =G$68 -> £m | H150: 0 | I150: 0 | J150: 0 | K150: 0 | L150: 0 | M150: 0 | N150: 0 | O150: 0 | P150: 0 | Q150: 0 | R150: 0 | S150: 0 | T150: 0 | U150: 0 | V150: 0
E151: =E$69 -> Water network revenue adjustment applied in first year | F151: 0 | G151: =G$69 -> £m | H151: 0 | I151: 0 | J151: 0 | K151: 0 | L151: 0 | M151: 0 | N151: 0 | O151: 0 | P151: 0 | Q151: 0 | R151: 0 | S151: 0 | T151: 0 | U151: 0 | V151: 0
E152: =E$70 -> Wastewater network revenue adjustment applied in first year | F152: 0 | G152: =G$70 -> £m | H152: 0 | I152: 0 | J152: 0 | K152: 0 | L152: 0 | M152: 0 | N152: 0 | O152: 0 | P152: 0 | Q152: 0 | R152: 0 | S152: 0 | T152: 0 | U152: 0 | V152: 0
E153: =E$71 -> Residential retail revenue adjustment applied in first year | F153: 0 | G153: =G$71 -> £m | H153: 0 | I153: 0 | J153: 0 | K153: 0 | L153: 0 | M153: 0 | N153: 0 | O153: 0 | P153: 0 | Q153: 0 | R153: 0 | S153: 0 | T153: 0 | U153: 0 | V153: 0
E155: =E$91 -> Water resources revenue adjustment - EAC factor adjusted | F155: =F$91 -> 0 | G155: £m | H155: 0 | I155: 0 | J155: 0 | K155: 0 | L155: 0 | M155: 0 | N155: 0 | O155: 0 | P155: 0 | Q155: 0 | R155: 0 | S155: 0 | T155: 0 | U155: 0 | V155: 0
E156: =E$92 -> Water network revenue adjustment - EAC factor adjusted | F156: =F$92 -> 0 | G156: £m | H156: 0 | I156: 0 | J156: 0 | K156: 0 | L156: 0 | M156: 0 | N156: 0 | O156: 0 | P156: 0 | Q156: 0 | R156: 0 | S156: 0 | T156: 0 | U156: 0 | V156: 0
E157: =E$93 -> Wastewater network revenue adjustment - EAC factor adjusted | F157: =F$93 -> 0 | G157: £m | H157: 0 | I157: 0 | J157: 0 | K157: 0 | L157: 0 | M157: 0 | N157: 0 | O157: 0 | P157: 0 | Q157: 0 | R157: 0 | S157: 0 | T157: 0 | U157: 0 | V157: 0
E158: =E$94 -> Residential retail revenue adjustment - EAC factor adjusted | F158: =F$94 -> 0 | G158: £m | H158: 0 | I158: 0 | J158: 0 | K158: 0 | L158: 0 | M158: 0 | N158: 0 | O158: 0 | P158: 0 | Q158: 0 | R158: 0 | S158: 0 | T158: 0 | U158: 0 | V158: 0
E160: =E$127 -> Water resources revenue adjustment - NPV adjusted | F160: =F$127 -> 0 | G160: £m | I160: 0 | S160: 0 | T160: 0 | U160: 0 | V160: 0
E161: =E$128 -> Water network revenue adjustment - NPV adjusted | F161: =F$128 -> 0 | G161: £m | I161: 0 | S161: 0 | T161: 0 | U161: 0 | V161: 0
E162: =E$129 -> Wastewater network revenue adjustment - NPV adjusted | F162: =F$129 -> 0 | G162: £m | I162: 0 | S162: 0 | T162: 0 | U162: 0 | V162: 0
E163: =E$130 -> Residential retail revenue adjustment - NPV adjusted | F163: =F$130 -> 0 | G163: £m | I163: 0 | S163: 0 | T163: 0 | U163: 0 | V163: 0
E165: Water resources revenue adjustment active | G165: £m | H165: =SUM(J165:V165) ->  | J165: =IF($F145 = 0, J150, IF($F145 = 1, J155, J160)) ->  | Q165: =IF($F145 = 0, Q150, IF($F145 = 1, Q155, Q160)) ->  | S165: 0 | T165: 0 | U165: 0 | V165: 0
E166: Water network revenue adjustment active | G166: £m | J166: =IF($F146 = 0, J151, IF($F146 = 1, J156, J161)) ->  | Q166: =IF($F146 = 0, Q151, IF($F146 = 1, Q156, Q161)) ->  | S166: 0 | T166: 0 | U166: 0 | V166: 0
E167: Wastewater network revenue adjustment active | G167: £m | J167: =IF($F147 = 0, J152, IF($F147 = 1, J157, J162)) ->  | Q167: =IF($F147 = 0, Q152, IF($F147 = 1, Q157, Q162)) ->  | S167: 0 | T167: 0 | U167: 0 | V167: 0
E168: Residential retail revenue adjustment active | G168: £m | J168: =IF($F148 = 0, J153, IF($F148 = 1, J158, J163)) ->  | Q168: =IF($F148 = 0, Q153, IF($F148 = 1, Q158, Q163)) ->  | S168: 0 | T168: 0 | U168: 0 | V168: 0

Sheet Summary_Output
A1: =RIGHT(CELL("filename", $A$1), LEN(CELL("filename", $A$1)) - SEARCH("]", CELL("filename", $A$1))) -> Summary_Output
E2: =Time!E$25 -> Model period ending | J2: =Time!J$25 -> 2013-03-31 | K2: =Time!K$25 -> 2014-03-31 | L2: =Time!L$25 -> 2015-03-31 | M2: =Time!M$25 -> 2016-03-31 | N2: =Time!N$25 -> 2017-03-31 | O2: =Time!O$25 -> 2018-03-31 | P2: =Time!P$25 -> 2019-03-31 | Q2: =Time!Q$25 -> 2020-03-31 | R2: =Time!R$25 -> 2021-03-31 | S2: =Time!S$25 -> 2022-03-31 | T2: =Time!T$25 -> 2023-03-31 | U2: =Time!U$25 -> 2024-03-31 | V2: =Time!V$25 -> 2025-03-31
E3: =Time!E$80 -> Timeline label | J3: =Time!J$80 -> Pre-Fcst | K3: =Time!K$80 -> Pre-Fcst | L3: =Time!L$80 -> Pre-Fcst | M3: =Time!M$80 -> Pre-Fcst | N3: =Time!N$80 -> Pre-Fcst | O3: =Time!O$80 -> Pre-Fcst | P3: =Time!P$80 -> Pre-Fcst | Q3: =Time!Q$80 -> Pre-Fcst | R3: =Time!R$80 -> Forecast | S3: =Time!S$80 -> Forecast | T3: =Time!T$80 -> Forecast | U3: =Time!U$80 -> Forecast | V3: =Time!V$80 -> Forecast
E4: =Time!E$103 -> Financial year ending | J4: =Time!J$103 -> 2013 | K4: =Time!K$103 -> 2014 | L4: =Time!L$103 -> 2015 | M4: =Time!M$103 -> 2016 | N4: =Time!N$103 -> 2017 | O4: =Time!O$103 -> 2018 | P4: =Time!P$103 -> 2019 | Q4: =Time!Q$103 -> 2020 | R4: =Time!R$103 -> 2021 | S4: =Time!S$103 -> 2022 | T4: =Time!T$103 -> 2023 | U4: =Time!U$103 -> 2024 | V4: =Time!V$103 -> 2025
E5: =Time!E$10 -> Model column counter | F5: Constant | G5: Unit | J5: =Time!J$10 -> 1 | K5: =Time!K$10 -> 2 | L5: =Time!L$10 -> 3 | M5: =Time!M$10 -> 4 | N5: =Time!N$10 -> 5 | O5: =Time!O$10 -> 6 | P5: =Time!P$10 -> 7 | Q5: =Time!Q$10 -> 8 | R5: =Time!R$10 -> 9 | S5: =Time!S$10 -> 10 | T5: =Time!T$10 -> 11 | U5: =Time!U$10 -> 12 | V5: =Time!V$10 -> 13
A7: WATER SERVICES INPUTS INFLATION
E9: =Calc!E$11 -> Water trading at 2020 FYE price base | F9: =Calc!F$11 -> 0 | G9: =Calc!G$11 -> £m
B11: Water network +
E12: =Calc!E$20 -> Water trading - Water network at 2020 FYE price base | F12: =Calc!F$20 -> 0 | G12: =Calc!G$20 -> £m
E13: =Calc!E$21 -> WRFIM - Water network at 2020 FYE price base | F13: =Calc!F$21 -> 0 | G13: =Calc!G$21 -> £m
E14: =Calc!E$29 -> Final 2010-15 reconciliation - PR09 Legacy blind year adjustments - Water network at 2020 FYE price base | F14: =Calc!F$29 -> 0 | G14: =Calc!G$29 -> £m
E15: =Calc!E$30 -> ODI - Water network at 2020 FYE price base | F15: =Calc!F$30 -> 0 | G15: =Calc!G$30 -> £m
E16: =Calc!E$31 -> Totex - Water network at 2020 FYE price base | F16: =Calc!F$31 -> 0 | G16: =Calc!G$31 -> £m
B18: Water resources
E19: =Calc!E$36 -> Water trading - Water resources at 2020 FYE price base | F19: =Calc!F$36 -> 0 | G19: =Calc!G$36 -> £m
A22: WASTEWATER NETWORK + : INPUTS INFLATION
E24: =Calc!E$47 -> Final 2010-15 reconciliation - PR09 Legacy blind year adjustments - Wastewater network at 2020 FYE price base | F24: =Calc!F$47 -> 0 | G24: =Calc!G$47 -> £m
E25: =Calc!E$48 -> ODI - Wastewater network at 2020 FYE price base | F25: =Calc!F$48 -> 0 | G25: =Calc!G$48 -> £m
E26: =Calc!E$49 -> Totex - Wastewater network at 2020 FYE price base | F26: =Calc!F$49 -> 0 | G26: =Calc!G$49 -> £m
E27: =Calc!E$53 -> WRFIM - Wastewater network at 2020 FYE price base | F27: =Calc!F$53 -> 0 | G27: =Calc!G$53 -> £m
A30: RESIDENTIAL RETAIL INPUTS INFLATION
E32: =Calc!E$64 -> Residential retail revenue at 2020 FYE price base | F32: =Calc!F$64 -> 0 | G32: =Calc!G$64 -> £m
E33: =Calc!E$65 -> Residential retail - SIM at 2020 FYE price base | F33: =Calc!F$65 -> 0 | G33: =Calc!G$65 -> £m
A36: PR14 REVENUE RECONCILIATION ADJUSTMENTS EXPRESSED IN 2017/18 FYA CPIH DEFLATED PRICE BASE
E38: =Calc!E$86 -> Water trading at 2017/18 FYA CPIH deflated price base | F38: =Calc!F$86 -> 0 | G38: =Calc!G$86 -> £m
E39: =Calc!E$87 -> Water trading - Water network at 2017/18 FYA CPIH deflated price base | F39: =Calc!F$87 -> 0 | G39: =Calc!G$87 -> £m
E40: =Calc!E$88 -> WRFIM at 2017/18 FYA CPIH deflated price base | F40: =Calc!F$88 -> 0 | G40: =Calc!G$88 -> £m
E41: =Calc!E$89 -> Final 2010-15 reconciliation - PR09 Legacy blind year adjustments - Water network at 2017/18 FYA CPIH deflated price base | F41: =Calc!F$89 -> 0 | G41: =Calc!G$89 -> £m
E42: =Calc!E$90 -> ODI - Water network at 2017/18 FYA CPIH deflated price base | F42: =Calc!F$90 -> 0 | G42: =Calc!G$90 -> £m
E43: =Calc!E$91 -> Totex - Water network at 2017/18 FYA CPIH deflated price base | F43: =Calc!F$91 -> 0 | G43: =Calc!G$91 -> £m
E44: =Calc!E$92 -> Water trading - Water resources at 2017/18 FYA CPIH deflated price base | F44: =Calc!F$92 -> 0 | G44: =Calc!G$92 -> £m
E45: =Calc!E$93 -> Final 2010-15 reconciliation - PR09 Legacy blind year adjustments - Wastewater network at 2017/18 FYA CPIH deflated price base | F45: =Calc!F$93 -> 0 | G45: =Calc!G$93 -> £m
E46: =Calc!E$94 -> ODI - Wastewater network at 2017/18 FYA CPIH deflated price base | F46: =Calc!F$94 -> 0 | G46: =Calc!G$94 -> £m
E47: =Calc!E$95 -> Totex - Wastewater network at 2017/18 FYA CPIH deflated price base | F47: =Calc!F$95 -> 0 | G47: =Calc!G$95 -> £m
E48: =Calc!E$96 -> WRFIM - Wastewater network at 2017/18 FYA CPIH deflated price base | F48: =Calc!F$96 -> 0 | G48: =Calc!G$96 -> £m
E49: =Calc!E$97 -> Residential retail revenue at 2017/18 FYA CPIH deflated price base | F49: =Calc!F$97 -> 0 | G49: =Calc!G$97 -> £m
E50: =Calc!E$98 -> Residential retail - SIM at 2017/18 FYA CPIH deflated price base | F50: =Calc!F$98 -> 0 | G50: =Calc!G$98 -> £m
A53: SUBTOTALS AS PER PRICE CONTROL FOR REVENUE ADJUSTMENTS
E55: =Calc!E$105 -> Water resources revenue adjustment | F55: =Calc!F$105 -> 0 | G55: =Calc!G$105 -> £m
E56: =Calc!E$113 -> Water network + : revenue adjustment | F56: =Calc!F$113 -> 0 | G56: =Calc!G$113 -> £m
E57: =Calc!E$120 -> Wastewater network + : revenue adjustment | F57: =Calc!F$120 -> 0 | G57: =Calc!G$120 -> £m
E58: =Calc!E$125 -> Residential retail revenue adjustment | F58: =Calc!F$125 -> 0 | G58: =Calc!G$125 -> £m
A61: PROFILES SELECTED
E63: =Profiling!E$165 -> Water resources revenue adjustment active | F63: =Profiling!F$165 -> 0 | G63: =Profiling!G$165 -> £m | H63: =Profiling!H$165 ->  | I63: =Profiling!I$165 -> 0 | J63: =Profiling!J$165 ->  | K63: =Profiling!K$165 ->  | L63: =Profiling!L$165 ->  | M63: =Profiling!M$165 ->  | N63: =Profiling!N$165 ->  | O63: =Profiling!O$165 ->  | P63: =Profiling!P$165 ->  | Q63: =Profiling!Q$165 ->  | R63: =Profiling!R$165 ->  | S63: =Profiling!S$165 -> 0 | T63: =Profiling!T$165 -> 0 | U63: =Profiling!U$165 -> 0 | V63: =Profiling!V$165 -> 0
E64: =Profiling!E$166 -> Water network revenue adjustment active | F64: =Profiling!F$166 -> 0 | G64: =Profiling!G$166 -> £m | H64: =Profiling!H$166 ->  | I64: =Profiling!I$166 -> 0 | J64: =Profiling!J$166 ->  | K64: =Profiling!K$166 ->  | L64: =Profiling!L$166 ->  | M64: =Profiling!M$166 ->  | N64: =Profiling!N$166 ->  | O64: =Profiling!O$166 ->  | P64: =Profiling!P$166 ->  | Q64: =Profiling!Q$166 ->  | R64: =Profiling!R$166 ->  | S64: =Profiling!S$166 -> 0 | T64: =Profiling!T$166 -> 0 | U64: =Profiling!U$166 -> 0 | V64: =Profiling!V$166 -> 0
E65: =Profiling!E$167 -> Wastewater network revenue adjustment active | F65: =Profiling!F$167 -> 0 | G65: =Profiling!G$167 -> £m | H65: =Profiling!H$167 ->  | I65: =Profiling!I$167 -> 0 | J65: =Profiling!J$167 ->  | K65: =Profiling!K$167 ->  | L65: =Profiling!L$167 ->  | M65: =Profiling!M$167 ->  | N65: =Profiling!N$167 ->  | O65: =Profiling!O$167 ->  | P65: =Profiling!P$167 ->  | Q65: =Profiling!Q$167 ->  | R65: =Profiling!R$167 ->  | S65: =Profiling!S$167 -> 0 | T65: =Profiling!T$167 -> 0 | U65: =Profiling!U$167 -> 0 | V65: =Profiling!V$167 -> 0
E66: =Profiling!E$168 -> Residential retail revenue adjustment active | F66: =Profiling!F$168 -> 0 | G66: =Profiling!G$168 -> £m | H66: =Profiling!H$168 ->  | I66: =Profiling!I$168 -> 0 | J66: =Profiling!J$168 ->  | K66: =Profiling!K$168 ->  | L66: =Profiling!L$168 ->  | M66: =Profiling!M$168 ->  | N66: =Profiling!N$168 ->  | O66: =Profiling!O$168 ->  | P66: =Profiling!P$168 ->  | Q66: =Profiling!Q$168 ->  | R66: =Profiling!R$168 ->  | S66: =Profiling!S$168 -> 0 | T66: =Profiling!T$168 -> 0 | U66: =Profiling!U$168 -> 0 | V66: =Profiling!V$168 -> 0
